{"text_format":"1","workbook":"xlsx","n_sheets":3,"sheets":["Produktionsanlæg","Distributionsanlæg","Fællesfunktionsanlæg"],"not_rendered":{"charts":0,"images":0,"macros":1,"external_links":0,"defined_names":2,"comments":0,"pivot_tables":0},"unopened":[],"bounds":{"document_bytes":16777216,"sheet_cells":100000,"rows_first":2000,"rows_last":500,"rows_between":2000,"halvings":0,"cell_chars":16384,"cell_head_chars":4096},"cells_cut":0,"cells_raw":0,"read":"whole","date_system":"1900"}

{"sheet":"Produktionsanlæg","index":0,"n_rows":552,"n_cols":9,"rows_kept":552,"cut":false,"hidden":false,"merged":[[0,0,1,0],[0,1,1,1],[0,2,1,2],[0,3,1,3],[0,8,1,8],[0,4,1,4],[0,5,1,5],[0,6,1,6],[0,7,1,7]]}
["Produktionsanlæg","Enhed","Standard-levetid","Samlet mængde per 31/12-2022","Samlet mængde per 31/12-2023","Samlet mængde per 31/12-2024","Afvigelse 2022-2023","Afvigelse 2023-2024","Bemærkninger"]
[]
["Renseanlæg 1",null,null,null,null,null,{"$f":"IF(D3=\"\",IF(E3>0,\"Ny data\",IF(E3=\"\",\"\",0)),IF(D3=0,IF(E3=0,0,\"Ny data\"),(E3-D3)/D3))","v":""},{"$f":"IF(E3=\"\",IF(F3>0,\"Ny data\",IF(F3=\"\",\"\",0)),IF(E3=0,IF(F3=0,0,\"Ny data\"),(F3-E3)/E3))","v":""}]
["Mindre renseanlæg",null,null,null,null,null,"",""]
["Mindre renseanlæg < 5.000 PE","PE",40,0,0,0,0,0]
["Renseanlæg >= 5.000 PE, Vandbehandling",null,null,null,null,null,"",""]
["Indløb med riste, Konstruktioner","PE",60,0,0,0,0,0]
["Indløb med riste, Mek/EL","PE",20,0,0,0,0,0]
["Indløb med riste, SRO","PE",10,0,0,0,0,0]
["Sand- og fedtfang, Kontruktioner","PE",60,0,0,0,0,0]
["Sand- og fedtfang, Mek/EL","PE",20,0,0,0,0,0]
["Sand- og fedtfang, SRO","PE",10,0,0,0,0,0]
["Forklaring, Konstruktioner","PE",60,0,0,0,0,0]
["Forklaring, Mek/EL","PE",20,0,0,0,0,0]
["Forklaring, SRO","PE",10,0,0,0,0,0]
["Beluftningstanke, Konstruktioner","PE",60,0,0,0,0,0]
["Beluftningstanke, Mek/EL","PE",20,0,0,0,0,0]
["Beluftningstanke, SRO","PE",10,0,0,0,0,0]
["Efterklaringstanke, Konstruktioner","PE",60,0,0,0,0,0]
["Efterklaringstanke, Mek/El","PE",20,0,0,0,0,0]
["Efterklaringstanke, SRO","PE",10,0,0,0,0,0]
["Efterbehandlingsanlæg (sandfilter), Konstruktioner","PE",60,0,0,0,0,0]
["Efterbehandlingsanlæg (sandfilter), Mek/EL","PE",20,0,0,0,0,0]
["Efterbehandlingsanlæg (sandfilter), SRO","PE",10,0,0,0,0,0]
["Renseanlæg >= 5.000 PE, Slambehandling",null,null,null,null,null,"",""]
["Forafvanding, slam, Konstruktion","PE",60,0,0,0,0,0]
["Forafvanding, slam, Mek/EL","PE",20,0,0,0,0,0]
["Forafvanding, slam, SRO","PE",10,0,0,0,0,0]
["Rådnetanke, slam, Konstruktioner","PE",60,0,0,0,0,0]
["Rådnetanke, slam, Mek/EL","PE",20,0,0,0,0,0]
["Rådnetanke, slam, SRO","PE",10,0,0,0,0,0]
["Gasdisponering, Konstruktioner","PE",60,0,0,0,0,0]
["Gasdisponering, Mek/EL","PE",20,0,0,0,0,0]
["Gasdisponering, SRO","PE",10,0,0,0,0,0]
["Gasdisponering - elproduktionsanlæg, Konstruktioner","PE",60,0,0,0,0,0]
["Gasdisponering - elproduktionsanlæg, Mek/EL","PE",20,0,0,0,0,0]
["Gasdisponering - elproduktionsanlæg, SRO","PE",10,0,0,0,0,0]
["Gasrensning - Aktivt kulfilter","m3/t",15,0,0,0,0,0]
["Gasrensning - Biologisk skrubber","m3/t",15,0,0,0,0,0]
["Opgraderingsanlæg - Membran","m3/t",15,0,0,0,0,0]
["Varmeproduktionsanlæg","m3/t",15,0,0,0,0,0]
["Slutafvanding, slam - lavteknologisk (slambede), Konstruktioner","PE",60,0,0,0,0,0]
["Slutafvanding, slam - lavteknologisk (slambede), Mek/EL","PE",20,0,0,0,0,0]
["Slutafvanding, slam - lavteknologisk (slambede), SRO","PE",10,0,0,0,0,0]
["Slutafvanding, slam - højteknologisk (centrifuger), Konstruktioner","PE",60,0,0,0,0,0]
["Slutafvanding, slam - højteknologisk (centrifuger), Mek/El","PE",20,0,0,0,0,0]
["Slutafvanding, slam - højteknologisk (centrifuger), SRO","PE",10,0,0,0,0,0]
["Renseanlæg >= 5.000 PE, Slamdisponering",null,null,null,null,null,"",""]
["Slutdisponering, slam - lavteknologisk (slammineralisering), Konstruktioner","PE",60,0,0,0,0,0]
["Slutdisponering, slam - lavteknologisk (slammineralisering), Mek/EL","PE",20,0,0,0,0,0]
["Slutdisponering, slam - lavteknologisk (slammineralisering), SRO","PE",10,0,0,0,0,0]
["Slutdisponering, slam - højteknologisk (slamtørring), Konstruktioner","PE",60,0,0,0,0,0]
["Slutdisponering, slam - højteknologisk (slamtørring), Mek/EL","PE",20,0,0,0,0,0]
["Slutdisponering, slam - højteknologisk (slamtørring), SRO","PE",10,0,0,0,0,0]
["Slutdisponering, slam - højteknologisk (slamtørring og -forbrænding), Konstruktioner","PE",60,0,0,0,0,0]
["Slutdisponering, slam - højteknologisk (slamtørring og -forbrænding), Mek/EL","PE",20,0,0,0,0,0]
["Slutdisponering, slam - højteknologisk (slamtørring og -forbrænding), SRO","PE",10,0,0,0,0,0]
["Renseanlæg 2",null,null,null,null,null,"",""]
["Mindre renseanlæg",null,null,null,null,null,"",""]
["Mindre renseanlæg < 5.000 PE","PE",40,0,0,0,0,0]
["Renseanlæg >= 5.000 PE, Vandbehandling",null,null,null,null,null,"",""]
["Indløb med riste, Konstruktioner","PE",60,0,0,0,0,0]
["Indløb med riste, Mek/EL","PE",20,0,0,0,0,0]
["Indløb med riste, SRO","PE",10,0,0,0,0,0]
["Sand- og fedtfang, Kontruktioner","PE",60,0,0,0,0,0]
["Sand- og fedtfang, Mek/EL","PE",20,0,0,0,0,0]
["Sand- og fedtfang, SRO","PE",10,0,0,0,{"$f":"IF(D67=\"\",IF(E67>0,\"Ny data\",IF(E67=\"\",\"\",0)),IF(D67=0,IF(E67=0,0,\"Ny data\"),(E67-D67)/D67))","v":0},{"$f":"IF(E67=\"\",IF(F67>0,\"Ny data\",IF(F67=\"\",\"\",0)),IF(E67=0,IF(F67=0,0,\"Ny data\"),(F67-E67)/E67))","v":0}]
["Forklaring, Konstruktioner","PE",60,0,0,0,0,0]
["Forklaring, Mek/EL","PE",20,0,0,0,0,0]
["Forklaring, SRO","PE",10,0,0,0,0,0]
["Beluftningstanke, Konstruktioner","PE",60,0,0,0,0,0]
["Beluftningstanke, Mek/EL","PE",20,0,0,0,0,0]
["Beluftningstanke, SRO","PE",10,0,0,0,0,0]
["Efterklaringstanke, Konstruktioner","PE",60,0,0,0,0,0]
["Efterklaringstanke, Mek/El","PE",20,0,0,0,0,0]
["Efterklaringstanke, SRO","PE",10,0,0,0,0,0]
["Efterbehandlingsanlæg (sandfilter), Konstruktioner","PE",60,0,0,0,0,0]
["Efterbehandlingsanlæg (sandfilter), Mek/EL","PE",20,0,0,0,0,0]
["Efterbehandlingsanlæg (sandfilter), SRO","PE",10,0,0,0,0,0]
["Renseanlæg >= 5.000 PE, Slambehandling",null,null,null,null,null,"",""]
["Forafvanding, slam, Konstruktion","PE",60,0,0,0,0,0]
["Forafvanding, slam, Mek/EL","PE",20,0,0,0,0,0]
["Forafvanding, slam, SRO","PE",10,0,0,0,0,0]
["Rådnetanke, slam, Konstruktioner","PE",60,0,0,0,0,0]
["Rådnetanke, slam, Mek/EL","PE",20,0,0,0,0,0]
["Rådnetanke, slam, SRO","PE",10,0,0,0,0,0]
["Gasdisponering, Konstruktioner","PE",60,0,0,0,0,0]
["Gasdisponering, Mek/EL","PE",20,0,0,0,0,0]
["Gasdisponering, SRO","PE",10,0,0,0,0,0]
["Gasdisponering - elproduktionsanlæg, Konstruktioner","PE",60,0,0,0,0,0]
["Gasdisponering - elproduktionsanlæg, Mek/EL","PE",20,0,0,0,0,0]
["Gasdisponering - elproduktionsanlæg, SRO","PE",10,0,0,0,0,0]
["Gasrensning - Aktivt kulfilter","m3/t",15,0,0,0,0,0]
["Gasrensning - Biologisk skrubber","m3/t",15,0,0,0,0,0]
["Opgraderingsanlæg - Membran","m3/t",15,0,0,0,0,0]
["Varmeproduktionsanlæg","m3/t",15,0,0,0,0,0]
["Slutafvanding, slam - lavteknologisk (slambede), Konstruktioner","PE",60,0,0,0,0,0]
["Slutafvanding, slam - lavteknologisk (slambede), Mek/EL","PE",20,0,0,0,0,0]
["Slutafvanding, slam - lavteknologisk (slambede), SRO","PE",10,0,0,0,0,0]
["Slutafvanding, slam - højteknologisk (centrifuger), Konstruktioner","PE",60,0,0,0,0,0]
["Slutafvanding, slam - højteknologisk (centrifuger), Mek/El","PE",20,0,0,0,0,0]
["Slutafvanding, slam - højteknologisk (centrifuger), SRO","PE",10,0,0,0,0,0]
["Renseanlæg >= 5.000 PE, Slamdisponering",null,null,null,null,null,"",""]
["Slutdisponering, slam - lavteknologisk (slammineralisering), Konstruktioner","PE",60,0,0,0,0,0]
["Slutdisponering, slam - lavteknologisk (slammineralisering), Mek/EL","PE",20,0,0,0,0,0]
["Slutdisponering, slam - lavteknologisk (slammineralisering), SRO","PE",10,0,0,0,0,0]
["Slutdisponering, slam - højteknologisk (slamtørring), Konstruktioner","PE",60,0,0,0,0,0]
["Slutdisponering, slam - højteknologisk (slamtørring), Mek/EL","PE",20,0,0,0,0,0]
["Slutdisponering, slam - højteknologisk (slamtørring), SRO","PE",10,0,0,0,0,0]
["Slutdisponering, slam - højteknologisk (slamtørring og -forbrænding), Konstruktioner","PE",60,0,0,0,0,0]
["Slutdisponering, slam - højteknologisk (slamtørring og -forbrænding), Mek/EL","PE",20,0,0,0,0,0]
["Slutdisponering, slam - højteknologisk (slamtørring og -forbrænding), SRO","PE",10,0,0,0,0,0]
["Renseanlæg 3",null,null,null,null,null,"",""]
["Mindre renseanlæg",null,null,null,null,null,"",""]
["Mindre renseanlæg < 5.000 PE","PE",40,0,0,0,0,0]
["Renseanlæg >= 5.000 PE, Vandbehandling",null,null,null,null,null,"",""]
["Indløb med riste, Konstruktioner","PE",60,0,0,0,0,0]
["Indløb med riste, Mek/EL","PE",20,0,0,0,0,0]
["Indløb med riste, SRO","PE",10,0,0,0,0,0]
["Sand- og fedtfang, Kontruktioner","PE",60,0,0,0,0,0]
["Sand- og fedtfang, Mek/EL","PE",20,0,0,0,0,0]
["Sand- og fedtfang, SRO","PE",10,0,0,0,0,0]
["Forklaring, Konstruktioner","PE",60,0,0,0,0,0]
["Forklaring, Mek/EL","PE",20,0,0,0,0,0]
["Forklaring, SRO","PE",10,0,0,0,0,0]
["Beluftningstanke, Konstruktioner","PE",60,0,0,0,0,0]
["Beluftningstanke, Mek/EL","PE",20,0,0,0,0,0]
["Beluftningstanke, SRO","PE",10,0,0,0,0,0]
["Efterklaringstanke, Konstruktioner","PE",60,0,0,0,0,0]
["Efterklaringstanke, Mek/El","PE",20,0,0,0,0,0]
["Efterklaringstanke, SRO","PE",10,0,0,0,{"$f":"IF(D131=\"\",IF(E131>0,\"Ny data\",IF(E131=\"\",\"\",0)),IF(D131=0,IF(E131=0,0,\"Ny data\"),(E131-D131)/D131))","v":0},{"$f":"IF(E131=\"\",IF(F131>0,\"Ny data\",IF(F131=\"\",\"\",0)),IF(E131=0,IF(F131=0,0,\"Ny data\"),(F131-E131)/E131))","v":0}]
["Efterbehandlingsanlæg (sandfilter), Konstruktioner","PE",60,0,0,0,0,0]
["Efterbehandlingsanlæg (sandfilter), Mek/EL","PE",20,0,0,0,0,0]
["Efterbehandlingsanlæg (sandfilter), SRO","PE",10,0,0,0,0,0]
["Renseanlæg >= 5.000 PE, Slambehandling",null,null,null,null,null,"",""]
["Forafvanding, slam, Konstruktion","PE",60,0,0,0,0,0]
["Forafvanding, slam, Mek/EL","PE",20,0,0,0,0,0]
["Forafvanding, slam, SRO","PE",10,0,0,0,0,0]
["Rådnetanke, slam, Konstruktioner","PE",60,0,0,0,0,0]
["Rådnetanke, slam, Mek/EL","PE",20,0,0,0,0,0]
["Rådnetanke, slam, SRO","PE",10,0,0,0,0,0]
["Gasdisponering, Konstruktioner","PE",60,0,0,0,0,0]
["Gasdisponering, Mek/EL","PE",20,0,0,0,0,0]
["Gasdisponering, SRO","PE",10,0,0,0,0,0]
["Gasdisponering - elproduktionsanlæg, Konstruktioner","PE",60,0,0,0,0,0]
["Gasdisponering - elproduktionsanlæg, Mek/EL","PE",20,0,0,0,0,0]
["Gasdisponering - elproduktionsanlæg, SRO","PE",10,0,0,0,0,0]
["Gasrensning - Aktivt kulfilter","m3/t",15,0,0,0,0,0]
["Gasrensning - Biologisk skrubber","m3/t",15,0,0,0,0,0]
["Opgraderingsanlæg - Membran","m3/t",15,0,0,0,0,0]
["Varmeproduktionsanlæg","m3/t",15,0,0,0,0,0]
["Slutafvanding, slam - lavteknologisk (slambede), Konstruktioner","PE",60,0,0,0,0,0]
["Slutafvanding, slam - lavteknologisk (slambede), Mek/EL","PE",20,0,0,0,0,0]
["Slutafvanding, slam - lavteknologisk (slambede), SRO","PE",10,0,0,0,0,0]
["Slutafvanding, slam - højteknologisk (centrifuger), Konstruktioner","PE",60,0,0,0,0,0]
["Slutafvanding, slam - højteknologisk (centrifuger), Mek/El","PE",20,0,0,0,0,0]
["Slutafvanding, slam - højteknologisk (centrifuger), SRO","PE",10,0,0,0,0,0]
["Renseanlæg >= 5.000 PE, Slamdisponering",null,null,null,null,null,"",""]
["Slutdisponering, slam - lavteknologisk (slammineralisering), Konstruktioner","PE",60,0,0,0,0,0]
["Slutdisponering, slam - lavteknologisk (slammineralisering), Mek/EL","PE",20,0,0,0,0,0]
["Slutdisponering, slam - lavteknologisk (slammineralisering), SRO","PE",10,0,0,0,0,0]
["Slutdisponering, slam - højteknologisk (slamtørring), Konstruktioner","PE",60,0,0,0,0,0]
["Slutdisponering, slam - højteknologisk (slamtørring), Mek/EL","PE",20,0,0,0,0,0]
["Slutdisponering, slam - højteknologisk (slamtørring), SRO","PE",10,0,0,0,0,0]
["Slutdisponering, slam - højteknologisk (slamtørring og -forbrænding), Konstruktioner","PE",60,0,0,0,0,0]
["Slutdisponering, slam - højteknologisk (slamtørring og -forbrænding), Mek/EL","PE",20,0,0,0,0,0]
["Slutdisponering, slam - højteknologisk (slamtørring og -forbrænding), SRO","PE",10,0,0,0,0,0]
["Renseanlæg 4",null,null,null,null,null,"",""]
["Mindre renseanlæg",null,null,null,null,null,"",""]
["Mindre renseanlæg < 5.000 PE","PE",40,0,0,0,0,0]
["Renseanlæg >= 5.000 PE, Vandbehandling",null,null,null,null,null,"",""]
["Indløb med riste, Konstruktioner","PE",60,0,0,0,0,0]
["Indløb med riste, Mek/EL","PE",20,0,0,0,0,0]
["Indløb med riste, SRO","PE",10,0,0,0,0,0]
["Sand- og fedtfang, Kontruktioner","PE",60,0,0,0,0,0]
["Sand- og fedtfang, Mek/EL","PE",20,0,0,0,0,0]
["Sand- og fedtfang, SRO","PE",10,0,0,0,0,0]
["Forklaring, Konstruktioner","PE",60,0,0,0,0,0]
["Forklaring, Mek/EL","PE",20,0,0,0,0,0]
["Forklaring, SRO","PE",10,0,0,0,0,0]
["Beluftningstanke, Konstruktioner","PE",60,0,0,0,0,0]
["Beluftningstanke, Mek/EL","PE",20,0,0,0,0,0]
["Beluftningstanke, SRO","PE",10,0,0,0,0,0]
["Efterklaringstanke, Konstruktioner","PE",60,0,0,0,0,0]
["Efterklaringstanke, Mek/El","PE",20,0,0,0,0,0]
["Efterklaringstanke, SRO","PE",10,0,0,0,0,0]
["Efterbehandlingsanlæg (sandfilter), Konstruktioner","PE",60,0,0,0,0,0]
["Efterbehandlingsanlæg (sandfilter), Mek/EL","PE",20,0,0,0,0,0]
["Efterbehandlingsanlæg (sandfilter), SRO","PE",10,0,0,0,0,0]
["Renseanlæg >= 5.000 PE, Slambehandling",null,null,null,null,null,"",""]
["Forafvanding, slam, Konstruktion","PE",60,0,0,0,0,0]
["Forafvanding, slam, Mek/EL","PE",20,0,0,0,0,0]
["Forafvanding, slam, SRO","PE",10,0,0,0,0,0]
["Rådnetanke, slam, Konstruktioner","PE",60,0,0,0,0,0]
["Rådnetanke, slam, Mek/EL","PE",20,0,0,0,{"$f":"IF(D195=\"\",IF(E195>0,\"Ny data\",IF(E195=\"\",\"\",0)),IF(D195=0,IF(E195=0,0,\"Ny data\"),(E195-D195)/D195))","v":0},{"$f":"IF(E195=\"\",IF(F195>0,\"Ny data\",IF(F195=\"\",\"\",0)),IF(E195=0,IF(F195=0,0,\"Ny data\"),(F195-E195)/E195))","v":0}]
["Rådnetanke, slam, SRO","PE",10,0,0,0,0,0]
["Gasdisponering, Konstruktioner","PE",60,0,0,0,0,0]
["Gasdisponering, Mek/EL","PE",20,0,0,0,0,0]
["Gasdisponering, SRO","PE",10,0,0,0,0,0]
["Gasdisponering - elproduktionsanlæg, Konstruktioner","PE",60,0,0,0,0,0]
["Gasdisponering - elproduktionsanlæg, Mek/EL","PE",20,0,0,0,0,0]
["Gasdisponering - elproduktionsanlæg, SRO","PE",10,0,0,0,0,0]
["Gasrensning - Aktivt kulfilter","m3/t",15,0,0,0,0,0]
["Gasrensning - Biologisk skrubber","m3/t",15,0,0,0,0,0]
["Opgraderingsanlæg - Membran","m3/t",15,0,0,0,0,0]
["Varmeproduktionsanlæg","m3/t",15,0,0,0,0,0]
["Slutafvanding, slam - lavteknologisk (slambede), Konstruktioner","PE",60,0,0,0,0,0]
["Slutafvanding, slam - lavteknologisk (slambede), Mek/EL","PE",20,0,0,0,0,0]
["Slutafvanding, slam - lavteknologisk (slambede), SRO","PE",10,0,0,0,0,0]
["Slutafvanding, slam - højteknologisk (centrifuger), Konstruktioner","PE",60,0,0,0,0,0]
["Slutafvanding, slam - højteknologisk (centrifuger), Mek/El","PE",20,0,0,0,0,0]
["Slutafvanding, slam - højteknologisk (centrifuger), SRO","PE",10,0,0,0,0,0]
["Renseanlæg >= 5.000 PE, Slamdisponering",null,null,null,null,null,"",""]
["Slutdisponering, slam - lavteknologisk (slammineralisering), Konstruktioner","PE",60,0,0,0,0,0]
["Slutdisponering, slam - lavteknologisk (slammineralisering), Mek/EL","PE",20,0,0,0,0,0]
["Slutdisponering, slam - lavteknologisk (slammineralisering), SRO","PE",10,0,0,0,0,0]
["Slutdisponering, slam - højteknologisk (slamtørring), Konstruktioner","PE",60,0,0,0,0,0]
["Slutdisponering, slam - højteknologisk (slamtørring), Mek/EL","PE",20,0,0,0,0,0]
["Slutdisponering, slam - højteknologisk (slamtørring), SRO","PE",10,0,0,0,0,0]
["Slutdisponering, slam - højteknologisk (slamtørring og -forbrænding), Konstruktioner","PE",60,0,0,0,0,0]
["Slutdisponering, slam - højteknologisk (slamtørring og -forbrænding), Mek/EL","PE",20,0,0,0,0,0]
["Slutdisponering, slam - højteknologisk (slamtørring og -forbrænding), SRO","PE",10,0,0,0,0,0]
["Renseanlæg 5",null,null,null,null,null,"",""]
["Mindre renseanlæg",null,null,null,null,null,"",""]
["Mindre renseanlæg < 5.000 PE","PE",40,0,0,0,0,0]
["Renseanlæg >= 5.000 PE, Vandbehandling",null,null,null,null,null,"",""]
["Indløb med riste, Konstruktioner","PE",60,0,0,0,0,0]
["Indløb med riste, Mek/EL","PE",20,0,0,0,0,0]
["Indløb med riste, SRO","PE",10,0,0,0,0,0]
["Sand- og fedtfang, Kontruktioner","PE",60,0,0,0,0,0]
["Sand- og fedtfang, Mek/EL","PE",20,0,0,0,0,0]
["Sand- og fedtfang, SRO","PE",10,0,0,0,0,0]
["Forklaring, Konstruktioner","PE",60,0,0,0,0,0]
["Forklaring, Mek/EL","PE",20,0,0,0,0,0]
["Forklaring, SRO","PE",10,0,0,0,0,0]
["Beluftningstanke, Konstruktioner","PE",60,0,0,0,0,0]
["Beluftningstanke, Mek/EL","PE",20,0,0,0,0,0]
["Beluftningstanke, SRO","PE",10,0,0,0,0,0]
["Efterklaringstanke, Konstruktioner","PE",60,0,0,0,0,0]
["Efterklaringstanke, Mek/El","PE",20,0,0,0,0,0]
["Efterklaringstanke, SRO","PE",10,0,0,0,0,0]
["Efterbehandlingsanlæg (sandfilter), Konstruktioner","PE",60,0,0,0,0,0]
["Efterbehandlingsanlæg (sandfilter), Mek/EL","PE",20,0,0,0,0,0]
["Efterbehandlingsanlæg (sandfilter), SRO","PE",10,0,0,0,0,0]
["Renseanlæg >= 5.000 PE, Slambehandling",null,null,null,null,null,"",""]
["Forafvanding, slam, Konstruktion","PE",60,0,0,0,0,0]
["Forafvanding, slam, Mek/EL","PE",20,0,0,0,0,0]
["Forafvanding, slam, SRO","PE",10,0,0,0,0,0]
["Rådnetanke, slam, Konstruktioner","PE",60,0,0,0,0,0]
["Rådnetanke, slam, Mek/EL","PE",20,0,0,0,0,0]
["Rådnetanke, slam, SRO","PE",10,0,0,0,0,0]
["Gasdisponering, Konstruktioner","PE",60,0,0,0,0,0]
["Gasdisponering, Mek/EL","PE",20,0,0,0,0,0]
["Gasdisponering, SRO","PE",10,0,0,0,0,0]
["Gasdisponering - elproduktionsanlæg, Konstruktioner","PE",60,0,0,0,0,0]
["Gasdisponering - elproduktionsanlæg, Mek/EL","PE",20,0,0,0,0,0]
["Gasdisponering - elproduktionsanlæg, SRO","PE",10,0,0,0,0,0]
["Gasrensning - Aktivt kulfilter","m3/t",15,0,0,0,0,0]
["Gasrensning - Biologisk skrubber","m3/t",15,0,0,0,{"$f":"IF(D259=\"\",IF(E259>0,\"Ny data\",IF(E259=\"\",\"\",0)),IF(D259=0,IF(E259=0,0,\"Ny data\"),(E259-D259)/D259))","v":0},{"$f":"IF(E259=\"\",IF(F259>0,\"Ny data\",IF(F259=\"\",\"\",0)),IF(E259=0,IF(F259=0,0,\"Ny data\"),(F259-E259)/E259))","v":0}]
["Opgraderingsanlæg - Membran","m3/t",15,0,0,0,0,0]
["Varmeproduktionsanlæg","m3/t",15,0,0,0,0,0]
["Slutafvanding, slam - lavteknologisk (slambede), Konstruktioner","PE",60,0,0,0,0,0]
["Slutafvanding, slam - lavteknologisk (slambede), Mek/EL","PE",20,0,0,0,0,0]
["Slutafvanding, slam - lavteknologisk (slambede), SRO","PE",10,0,0,0,0,0]
["Slutafvanding, slam - højteknologisk (centrifuger), Konstruktioner","PE",60,0,0,0,0,0]
["Slutafvanding, slam - højteknologisk (centrifuger), Mek/El","PE",20,0,0,0,0,0]
["Slutafvanding, slam - højteknologisk (centrifuger), SRO","PE",10,0,0,0,0,0]
["Renseanlæg >= 5.000 PE, Slamdisponering",null,null,null,null,null,"",""]
["Slutdisponering, slam - lavteknologisk (slammineralisering), Konstruktioner","PE",60,0,0,0,0,0]
["Slutdisponering, slam - lavteknologisk (slammineralisering), Mek/EL","PE",20,0,0,0,0,0]
["Slutdisponering, slam - lavteknologisk (slammineralisering), SRO","PE",10,0,0,0,0,0]
["Slutdisponering, slam - højteknologisk (slamtørring), Konstruktioner","PE",60,0,0,0,0,0]
["Slutdisponering, slam - højteknologisk (slamtørring), Mek/EL","PE",20,0,0,0,0,0]
["Slutdisponering, slam - højteknologisk (slamtørring), SRO","PE",10,0,0,0,0,0]
["Slutdisponering, slam - højteknologisk (slamtørring og -forbrænding), Konstruktioner","PE",60,0,0,0,0,0]
["Slutdisponering, slam - højteknologisk (slamtørring og -forbrænding), Mek/EL","PE",20,0,0,0,0,0]
["Slutdisponering, slam - højteknologisk (slamtørring og -forbrænding), SRO","PE",10,0,0,0,0,0]
["Renseanlæg 6",null,null,null,null,null,"",""]
["Mindre renseanlæg",null,null,null,null,null,"",""]
["Mindre renseanlæg < 5.000 PE","PE",40,0,0,0,0,0]
["Renseanlæg >= 5.000 PE, Vandbehandling",null,null,null,null,null,"",""]
["Indløb med riste, Konstruktioner","PE",60,0,0,0,0,0]
["Indløb med riste, Mek/EL","PE",20,0,0,0,0,0]
["Indløb med riste, SRO","PE",10,0,0,0,0,0]
["Sand- og fedtfang, Kontruktioner","PE",60,0,0,0,0,0]
["Sand- og fedtfang, Mek/EL","PE",20,0,0,0,0,0]
["Sand- og fedtfang, SRO","PE",10,0,0,0,0,0]
["Forklaring, Konstruktioner","PE",60,0,0,0,0,0]
["Forklaring, Mek/EL","PE",20,0,0,0,0,0]
["Forklaring, SRO","PE",10,0,0,0,0,0]
["Beluftningstanke, Konstruktioner","PE",60,0,0,0,0,0]
["Beluftningstanke, Mek/EL","PE",20,0,0,0,0,0]
["Beluftningstanke, SRO","PE",10,0,0,0,0,0]
["Efterklaringstanke, Konstruktioner","PE",60,0,0,0,0,0]
["Efterklaringstanke, Mek/El","PE",20,0,0,0,0,0]
["Efterklaringstanke, SRO","PE",10,0,0,0,0,0]
["Efterbehandlingsanlæg (sandfilter), Konstruktioner","PE",60,0,0,0,0,0]
["Efterbehandlingsanlæg (sandfilter), Mek/EL","PE",20,0,0,0,0,0]
["Efterbehandlingsanlæg (sandfilter), SRO","PE",10,0,0,0,0,0]
["Renseanlæg >= 5.000 PE, Slambehandling",null,null,null,null,null,"",""]
["Forafvanding, slam, Konstruktion","PE",60,0,0,0,0,0]
["Forafvanding, slam, Mek/EL","PE",20,0,0,0,0,0]
["Forafvanding, slam, SRO","PE",10,0,0,0,0,0]
["Rådnetanke, slam, Konstruktioner","PE",60,0,0,0,0,0]
["Rådnetanke, slam, Mek/EL","PE",20,0,0,0,0,0]
["Rådnetanke, slam, SRO","PE",10,0,0,0,0,0]
["Gasdisponering, Konstruktioner","PE",60,0,0,0,0,0]
["Gasdisponering, Mek/EL","PE",20,0,0,0,0,0]
["Gasdisponering, SRO","PE",10,0,0,0,0,0]
["Gasdisponering - elproduktionsanlæg, Konstruktioner","PE",60,0,0,0,0,0]
["Gasdisponering - elproduktionsanlæg, Mek/EL","PE",20,0,0,0,0,0]
["Gasdisponering - elproduktionsanlæg, SRO","PE",10,0,0,0,0,0]
["Gasrensning - Aktivt kulfilter","m3/t",15,0,0,0,0,0]
["Gasrensning - Biologisk skrubber","m3/t",15,0,0,0,0,0]
["Opgraderingsanlæg - Membran","m3/t",15,0,0,0,0,0]
["Varmeproduktionsanlæg","m3/t",15,0,0,0,0,0]
["Slutafvanding, slam - lavteknologisk (slambede), Konstruktioner","PE",60,0,0,0,0,0]
["Slutafvanding, slam - lavteknologisk (slambede), Mek/EL","PE",20,0,0,0,0,0]
["Slutafvanding, slam - lavteknologisk (slambede), SRO","PE",10,0,0,0,0,0]
["Slutafvanding, slam - højteknologisk (centrifuger), Konstruktioner","PE",60,0,0,0,0,0]
["Slutafvanding, slam - højteknologisk (centrifuger), Mek/El","PE",20,0,0,0,0,0]
["Slutafvanding, slam - højteknologisk (centrifuger), SRO","PE",10,0,0,0,0,0]
["Renseanlæg >= 5.000 PE, Slamdisponering",null,null,null,null,null,{"$f":"IF(D323=\"\",IF(E323>0,\"Ny data\",IF(E323=\"\",\"\",0)),IF(D323=0,IF(E323=0,0,\"Ny data\"),(E323-D323)/D323))","v":""},{"$f":"IF(E323=\"\",IF(F323>0,\"Ny data\",IF(F323=\"\",\"\",0)),IF(E323=0,IF(F323=0,0,\"Ny data\"),(F323-E323)/E323))","v":""}]
["Slutdisponering, slam - lavteknologisk (slammineralisering), Konstruktioner","PE",60,0,0,0,0,0]
["Slutdisponering, slam - lavteknologisk (slammineralisering), Mek/EL","PE",20,0,0,0,0,0]
["Slutdisponering, slam - lavteknologisk (slammineralisering), SRO","PE",10,0,0,0,0,0]
["Slutdisponering, slam - højteknologisk (slamtørring), Konstruktioner","PE",60,0,0,0,0,0]
["Slutdisponering, slam - højteknologisk (slamtørring), Mek/EL","PE",20,0,0,0,0,0]
["Slutdisponering, slam - højteknologisk (slamtørring), SRO","PE",10,0,0,0,0,0]
["Slutdisponering, slam - højteknologisk (slamtørring og -forbrænding), Konstruktioner","PE",60,0,0,0,0,0]
["Slutdisponering, slam - højteknologisk (slamtørring og -forbrænding), Mek/EL","PE",20,0,0,0,0,0]
["Slutdisponering, slam - højteknologisk (slamtørring og -forbrænding), SRO","PE",10,0,0,0,0,0]
["Renseanlæg 7",null,null,null,null,null,"",""]
["Mindre renseanlæg",null,null,null,null,null,"",""]
["Mindre renseanlæg < 5.000 PE","PE",40,0,0,0,0,0]
["Renseanlæg >= 5.000 PE, Vandbehandling",null,null,null,null,null,"",""]
["Indløb med riste, Konstruktioner","PE",60,0,0,0,0,0]
["Indløb med riste, Mek/EL","PE",20,0,0,0,0,0]
["Indløb med riste, SRO","PE",10,0,0,0,0,0]
["Sand- og fedtfang, Kontruktioner","PE",60,0,0,0,0,0]
["Sand- og fedtfang, Mek/EL","PE",20,0,0,0,0,0]
["Sand- og fedtfang, SRO","PE",10,0,0,0,0,0]
["Forklaring, Konstruktioner","PE",60,0,0,0,0,0]
["Forklaring, Mek/EL","PE",20,0,0,0,0,0]
["Forklaring, SRO","PE",10,0,0,0,0,0]
["Beluftningstanke, Konstruktioner","PE",60,0,0,0,0,0]
["Beluftningstanke, Mek/EL","PE",20,0,0,0,0,0]
["Beluftningstanke, SRO","PE",10,0,0,0,0,0]
["Efterklaringstanke, Konstruktioner","PE",60,0,0,0,0,0]
["Efterklaringstanke, Mek/El","PE",20,0,0,0,0,0]
["Efterklaringstanke, SRO","PE",10,0,0,0,0,0]
["Efterbehandlingsanlæg (sandfilter), Konstruktioner","PE",60,0,0,0,0,0]
["Efterbehandlingsanlæg (sandfilter), Mek/EL","PE",20,0,0,0,0,0]
["Efterbehandlingsanlæg (sandfilter), SRO","PE",10,0,0,0,0,0]
["Renseanlæg >= 5.000 PE, Slambehandling",null,null,null,null,null,"",""]
["Forafvanding, slam, Konstruktion","PE",60,0,0,0,0,0]
["Forafvanding, slam, Mek/EL","PE",20,0,0,0,0,0]
["Forafvanding, slam, SRO","PE",10,0,0,0,0,0]
["Rådnetanke, slam, Konstruktioner","PE",60,0,0,0,0,0]
["Rådnetanke, slam, Mek/EL","PE",20,0,0,0,0,0]
["Rådnetanke, slam, SRO","PE",10,0,0,0,0,0]
["Gasdisponering, Konstruktioner","PE",60,0,0,0,0,0]
["Gasdisponering, Mek/EL","PE",20,0,0,0,0,0]
["Gasdisponering, SRO","PE",10,0,0,0,0,0]
["Gasdisponering - elproduktionsanlæg, Konstruktioner","PE",60,0,0,0,0,0]
["Gasdisponering - elproduktionsanlæg, Mek/EL","PE",20,0,0,0,0,0]
["Gasdisponering - elproduktionsanlæg, SRO","PE",10,0,0,0,0,0]
["Gasrensning - Aktivt kulfilter","m3/t",15,0,0,0,0,0]
["Gasrensning - Biologisk skrubber","m3/t",15,0,0,0,0,0]
["Opgraderingsanlæg - Membran","m3/t",15,0,0,0,0,0]
["Varmeproduktionsanlæg","m3/t",15,0,0,0,0,0]
["Slutafvanding, slam - lavteknologisk (slambede), Konstruktioner","PE",60,0,0,0,0,0]
["Slutafvanding, slam - lavteknologisk (slambede), Mek/EL","PE",20,0,0,0,0,0]
["Slutafvanding, slam - lavteknologisk (slambede), SRO","PE",10,0,0,0,0,0]
["Slutafvanding, slam - højteknologisk (centrifuger), Konstruktioner","PE",60,0,0,0,0,0]
["Slutafvanding, slam - højteknologisk (centrifuger), Mek/El","PE",20,0,0,0,0,0]
["Slutafvanding, slam - højteknologisk (centrifuger), SRO","PE",10,0,0,0,0,0]
["Renseanlæg >= 5.000 PE, Slamdisponering",null,null,null,null,null,"",""]
["Slutdisponering, slam - lavteknologisk (slammineralisering), Konstruktioner","PE",60,0,0,0,0,0]
["Slutdisponering, slam - lavteknologisk (slammineralisering), Mek/EL","PE",20,0,0,0,0,0]
["Slutdisponering, slam - lavteknologisk (slammineralisering), SRO","PE",10,0,0,0,0,0]
["Slutdisponering, slam - højteknologisk (slamtørring), Konstruktioner","PE",60,0,0,0,0,0]
["Slutdisponering, slam - højteknologisk (slamtørring), Mek/EL","PE",20,0,0,0,0,0]
["Slutdisponering, slam - højteknologisk (slamtørring), SRO","PE",10,0,0,0,0,0]
["Slutdisponering, slam - højteknologisk (slamtørring og -forbrænding), Konstruktioner","PE",60,0,0,0,0,0]
["Slutdisponering, slam - højteknologisk (slamtørring og -forbrænding), Mek/EL","PE",20,0,0,0,0,0]
["Slutdisponering, slam - højteknologisk (slamtørring og -forbrænding), SRO","PE",10,0,0,0,{"$f":"IF(D387=\"\",IF(E387>0,\"Ny data\",IF(E387=\"\",\"\",0)),IF(D387=0,IF(E387=0,0,\"Ny data\"),(E387-D387)/D387))","v":0},{"$f":"IF(E387=\"\",IF(F387>0,\"Ny data\",IF(F387=\"\",\"\",0)),IF(E387=0,IF(F387=0,0,\"Ny data\"),(F387-E387)/E387))","v":0}]
["Renseanlæg 8",null,null,null,null,null,"",""]
["Mindre renseanlæg",null,null,null,null,null,"",""]
["Mindre renseanlæg < 5.000 PE","PE",40,0,0,0,0,0]
["Renseanlæg >= 5.000 PE, Vandbehandling",null,null,null,null,null,"",""]
["Indløb med riste, Konstruktioner","PE",60,0,0,0,0,0]
["Indløb med riste, Mek/EL","PE",20,0,0,0,0,0]
["Indløb med riste, SRO","PE",10,0,0,0,0,0]
["Sand- og fedtfang, Kontruktioner","PE",60,0,0,0,0,0]
["Sand- og fedtfang, Mek/EL","PE",20,0,0,0,0,0]
["Sand- og fedtfang, SRO","PE",10,0,0,0,0,0]
["Forklaring, Konstruktioner","PE",60,0,0,0,0,0]
["Forklaring, Mek/EL","PE",20,0,0,0,0,0]
["Forklaring, SRO","PE",10,0,0,0,0,0]
["Beluftningstanke, Konstruktioner","PE",60,0,0,0,0,0]
["Beluftningstanke, Mek/EL","PE",20,0,0,0,0,0]
["Beluftningstanke, SRO","PE",10,0,0,0,0,0]
["Efterklaringstanke, Konstruktioner","PE",60,0,0,0,0,0]
["Efterklaringstanke, Mek/El","PE",20,0,0,0,0,0]
["Efterklaringstanke, SRO","PE",10,0,0,0,0,0]
["Efterbehandlingsanlæg (sandfilter), Konstruktioner","PE",60,0,0,0,0,0]
["Efterbehandlingsanlæg (sandfilter), Mek/EL","PE",20,0,0,0,0,0]
["Efterbehandlingsanlæg (sandfilter), SRO","PE",10,0,0,0,0,0]
["Renseanlæg >= 5.000 PE, Slambehandling",null,null,null,null,null,"",""]
["Forafvanding, slam, Konstruktion","PE",60,0,0,0,0,0]
["Forafvanding, slam, Mek/EL","PE",20,0,0,0,0,0]
["Forafvanding, slam, SRO","PE",10,0,0,0,0,0]
["Rådnetanke, slam, Konstruktioner","PE",60,0,0,0,0,0]
["Rådnetanke, slam, Mek/EL","PE",20,0,0,0,0,0]
["Rådnetanke, slam, SRO","PE",10,0,0,0,0,0]
["Gasdisponering, Konstruktioner","PE",60,0,0,0,0,0]
["Gasdisponering, Mek/EL","PE",20,0,0,0,0,0]
["Gasdisponering, SRO","PE",10,0,0,0,0,0]
["Gasdisponering - elproduktionsanlæg, Konstruktioner","PE",60,0,0,0,0,0]
["Gasdisponering - elproduktionsanlæg, Mek/EL","PE",20,0,0,0,0,0]
["Gasdisponering - elproduktionsanlæg, SRO","PE",10,0,0,0,0,0]
["Gasrensning - Aktivt kulfilter","m3/t",15,0,0,0,0,0]
["Gasrensning - Biologisk skrubber","m3/t",15,0,0,0,0,0]
["Opgraderingsanlæg - Membran","m3/t",15,0,0,0,0,0]
["Varmeproduktionsanlæg","m3/t",15,0,0,0,0,0]
["Slutafvanding, slam - lavteknologisk (slambede), Konstruktioner","PE",60,0,0,0,0,0]
["Slutafvanding, slam - lavteknologisk (slambede), Mek/EL","PE",20,0,0,0,0,0]
["Slutafvanding, slam - lavteknologisk (slambede), SRO","PE",10,0,0,0,0,0]
["Slutafvanding, slam - højteknologisk (centrifuger), Konstruktioner","PE",60,0,0,0,0,0]
["Slutafvanding, slam - højteknologisk (centrifuger), Mek/El","PE",20,0,0,0,0,0]
["Slutafvanding, slam - højteknologisk (centrifuger), SRO","PE",10,0,0,0,0,0]
["Renseanlæg >= 5.000 PE, Slamdisponering",null,null,null,null,null,"",""]
["Slutdisponering, slam - lavteknologisk (slammineralisering), Konstruktioner","PE",60,0,0,0,0,0]
["Slutdisponering, slam - lavteknologisk (slammineralisering), Mek/EL","PE",20,0,0,0,0,0]
["Slutdisponering, slam - lavteknologisk (slammineralisering), SRO","PE",10,0,0,0,0,0]
["Slutdisponering, slam - højteknologisk (slamtørring), Konstruktioner","PE",60,0,0,0,0,0]
["Slutdisponering, slam - højteknologisk (slamtørring), Mek/EL","PE",20,0,0,0,0,0]
["Slutdisponering, slam - højteknologisk (slamtørring), SRO","PE",10,0,0,0,0,0]
["Slutdisponering, slam - højteknologisk (slamtørring og -forbrænding), Konstruktioner","PE",60,0,0,0,0,0]
["Slutdisponering, slam - højteknologisk (slamtørring og -forbrænding), Mek/EL","PE",20,0,0,0,0,0]
["Slutdisponering, slam - højteknologisk (slamtørring og -forbrænding), SRO","PE",10,0,0,0,0,0]
["Renseanlæg 9",null,null,null,null,null,"",""]
["Mindre renseanlæg",null,null,null,null,null,"",""]
["Mindre renseanlæg < 5.000 PE","PE",40,0,0,0,0,0]
["Renseanlæg >= 5.000 PE, Vandbehandling",null,null,null,null,null,"",""]
["Indløb med riste, Konstruktioner","PE",60,0,0,0,0,0]
["Indløb med riste, Mek/EL","PE",20,0,0,0,0,0]
["Indløb med riste, SRO","PE",10,0,0,0,0,0]
["Sand- og fedtfang, Kontruktioner","PE",60,0,0,0,0,0]
["Sand- og fedtfang, Mek/EL","PE",20,0,0,0,{"$f":"IF(D451=\"\",IF(E451>0,\"Ny data\",IF(E451=\"\",\"\",0)),IF(D451=0,IF(E451=0,0,\"Ny data\"),(E451-D451)/D451))","v":0},{"$f":"IF(E451=\"\",IF(F451>0,\"Ny data\",IF(F451=\"\",\"\",0)),IF(E451=0,IF(F451=0,0,\"Ny data\"),(F451-E451)/E451))","v":0}]
["Sand- og fedtfang, SRO","PE",10,0,0,0,0,0]
["Forklaring, Konstruktioner","PE",60,0,0,0,0,0]
["Forklaring, Mek/EL","PE",20,0,0,0,0,0]
["Forklaring, SRO","PE",10,0,0,0,0,0]
["Beluftningstanke, Konstruktioner","PE",60,0,0,0,0,0]
["Beluftningstanke, Mek/EL","PE",20,0,0,0,0,0]
["Beluftningstanke, SRO","PE",10,0,0,0,0,0]
["Efterklaringstanke, Konstruktioner","PE",60,0,0,0,0,0]
["Efterklaringstanke, Mek/El","PE",20,0,0,0,0,0]
["Efterklaringstanke, SRO","PE",10,0,0,0,0,0]
["Efterbehandlingsanlæg (sandfilter), Konstruktioner","PE",60,0,0,0,0,0]
["Efterbehandlingsanlæg (sandfilter), Mek/EL","PE",20,0,0,0,0,0]
["Efterbehandlingsanlæg (sandfilter), SRO","PE",10,0,0,0,0,0]
["Renseanlæg >= 5.000 PE, Slambehandling",null,null,null,null,null,"",""]
["Forafvanding, slam, Konstruktion","PE",60,0,0,0,0,0]
["Forafvanding, slam, Mek/EL","PE",20,0,0,0,0,0]
["Forafvanding, slam, SRO","PE",10,0,0,0,0,0]
["Rådnetanke, slam, Konstruktioner","PE",60,0,0,0,0,0]
["Rådnetanke, slam, Mek/EL","PE",20,0,0,0,0,0]
["Rådnetanke, slam, SRO","PE",10,0,0,0,0,0]
["Gasdisponering, Konstruktioner","PE",60,0,0,0,0,0]
["Gasdisponering, Mek/EL","PE",20,0,0,0,0,0]
["Gasdisponering, SRO","PE",10,0,0,0,0,0]
["Gasdisponering - elproduktionsanlæg, Konstruktioner","PE",60,0,0,0,0,0]
["Gasdisponering - elproduktionsanlæg, Mek/EL","PE",20,0,0,0,0,0]
["Gasdisponering - elproduktionsanlæg, SRO","PE",10,0,0,0,0,0]
["Gasrensning - Aktivt kulfilter","m3/t",15,0,0,0,0,0]
["Gasrensning - Biologisk skrubber","m3/t",15,0,0,0,0,0]
["Opgraderingsanlæg - Membran","m3/t",15,0,0,0,0,0]
["Varmeproduktionsanlæg","m3/t",15,0,0,0,0,0]
["Slutafvanding, slam - lavteknologisk (slambede), Konstruktioner","PE",60,0,0,0,0,0]
["Slutafvanding, slam - lavteknologisk (slambede), Mek/EL","PE",20,0,0,0,0,0]
["Slutafvanding, slam - lavteknologisk (slambede), SRO","PE",10,0,0,0,0,0]
["Slutafvanding, slam - højteknologisk (centrifuger), Konstruktioner","PE",60,0,0,0,0,0]
["Slutafvanding, slam - højteknologisk (centrifuger), Mek/El","PE",20,0,0,0,0,0]
["Slutafvanding, slam - højteknologisk (centrifuger), SRO","PE",10,0,0,0,0,0]
["Renseanlæg >= 5.000 PE, Slamdisponering",null,null,null,null,null,"",""]
["Slutdisponering, slam - lavteknologisk (slammineralisering), Konstruktioner","PE",60,0,0,0,0,0]
["Slutdisponering, slam - lavteknologisk (slammineralisering), Mek/EL","PE",20,0,0,0,0,0]
["Slutdisponering, slam - lavteknologisk (slammineralisering), SRO","PE",10,0,0,0,0,0]
["Slutdisponering, slam - højteknologisk (slamtørring), Konstruktioner","PE",60,0,0,0,0,0]
["Slutdisponering, slam - højteknologisk (slamtørring), Mek/EL","PE",20,0,0,0,0,0]
["Slutdisponering, slam - højteknologisk (slamtørring), SRO","PE",10,0,0,0,0,0]
["Slutdisponering, slam - højteknologisk (slamtørring og -forbrænding), Konstruktioner","PE",60,0,0,0,0,0]
["Slutdisponering, slam - højteknologisk (slamtørring og -forbrænding), Mek/EL","PE",20,0,0,0,0,0]
["Slutdisponering, slam - højteknologisk (slamtørring og -forbrænding), SRO","PE",10,0,0,0,0,0]
["Renseanlæg 10",null,null,null,null,null,"",""]
["Mindre renseanlæg",null,null,null,null,null,"",""]
["Mindre renseanlæg < 5.000 PE","PE",40,0,0,0,0,0]
["Renseanlæg >= 5.000 PE, Vandbehandling",null,null,null,null,null,"",""]
["Indløb med riste, Konstruktioner","PE",60,0,0,0,0,0]
["Indløb med riste, Mek/EL","PE",20,0,0,0,0,0]
["Indløb med riste, SRO","PE",10,0,0,0,0,0]
["Sand- og fedtfang, Kontruktioner","PE",60,0,0,0,0,0]
["Sand- og fedtfang, Mek/EL","PE",20,0,0,0,0,0]
["Sand- og fedtfang, SRO","PE",10,0,0,0,0,0]
["Forklaring, Konstruktioner","PE",60,0,0,0,0,0]
["Forklaring, Mek/EL","PE",20,0,0,0,0,0]
["Forklaring, SRO","PE",10,0,0,0,0,0]
["Beluftningstanke, Konstruktioner","PE",60,0,0,0,0,0]
["Beluftningstanke, Mek/EL","PE",20,0,0,0,0,0]
["Beluftningstanke, SRO","PE",10,0,0,0,0,0]
["Efterklaringstanke, Konstruktioner","PE",60,0,0,0,0,0]
["Efterklaringstanke, Mek/El","PE",20,0,0,0,{"$f":"IF(D515=\"\",IF(E515>0,\"Ny data\",IF(E515=\"\",\"\",0)),IF(D515=0,IF(E515=0,0,\"Ny data\"),(E515-D515)/D515))","v":0},{"$f":"IF(E515=\"\",IF(F515>0,\"Ny data\",IF(F515=\"\",\"\",0)),IF(E515=0,IF(F515=0,0,\"Ny data\"),(F515-E515)/E515))","v":0}]
["Efterklaringstanke, SRO","PE",10,0,0,0,0,0]
["Efterbehandlingsanlæg (sandfilter), Konstruktioner","PE",60,0,0,0,0,0]
["Efterbehandlingsanlæg (sandfilter), Mek/EL","PE",20,0,0,0,0,0]
["Efterbehandlingsanlæg (sandfilter), SRO","PE",10,0,0,0,0,0]
["Renseanlæg >= 5.000 PE, Slambehandling",null,null,null,null,null,"",""]
["Forafvanding, slam, Konstruktion","PE",60,0,0,0,0,0]
["Forafvanding, slam, Mek/EL","PE",20,0,0,0,0,0]
["Forafvanding, slam, SRO","PE",10,0,0,0,0,0]
["Rådnetanke, slam, Konstruktioner","PE",60,0,0,0,0,0]
["Rådnetanke, slam, Mek/EL","PE",20,0,0,0,0,0]
["Rådnetanke, slam, SRO","PE",10,0,0,0,0,0]
["Gasdisponering, Konstruktioner","PE",60,0,0,0,0,0]
["Gasdisponering, Mek/EL","PE",20,0,0,0,0,0]
["Gasdisponering, SRO","PE",10,0,0,0,0,0]
["Gasdisponering - elproduktionsanlæg, Konstruktioner","PE",60,0,0,0,0,0]
["Gasdisponering - elproduktionsanlæg, Mek/EL","PE",20,0,0,0,0,0]
["Gasdisponering - elproduktionsanlæg, SRO","PE",10,0,0,0,0,0]
["Gasrensning - Aktivt kulfilter","m3/t",15,0,0,0,0,0]
["Gasrensning - Biologisk skrubber","m3/t",15,0,0,0,0,0]
["Opgraderingsanlæg - Membran","m3/t",15,0,0,0,0,0]
["Varmeproduktionsanlæg","m3/t",15,0,0,0,0,0]
["Slutafvanding, slam - lavteknologisk (slambede), Konstruktioner","PE",60,0,0,0,0,0]
["Slutafvanding, slam - lavteknologisk (slambede), Mek/EL","PE",20,0,0,0,0,0]
["Slutafvanding, slam - lavteknologisk (slambede), SRO","PE",10,0,0,0,0,0]
["Slutafvanding, slam - højteknologisk (centrifuger), Konstruktioner","PE",60,0,0,0,0,0]
["Slutafvanding, slam - højteknologisk (centrifuger), Mek/El","PE",20,0,0,0,0,0]
["Slutafvanding, slam - højteknologisk (centrifuger), SRO","PE",10,0,0,0,0,0]
["Renseanlæg >= 5.000 PE, Slamdisponering",null,null,null,null,null,"",""]
["Slutdisponering, slam - lavteknologisk (slammineralisering), Konstruktioner","PE",60,0,0,0,{"$f":"IF(D544=\"\",IF(E544>0,\"Ny data\",IF(E544=\"\",\"\",0)),IF(D544=0,IF(E544=0,0,\"Ny data\"),(E544-D544)/D544))","v":0},{"$f":"IF(E544=\"\",IF(F544>0,\"Ny data\",IF(F544=\"\",\"\",0)),IF(E544=0,IF(F544=0,0,\"Ny data\"),(F544-E544)/E544))","v":0}]
["Slutdisponering, slam - lavteknologisk (slammineralisering), Mek/EL","PE",20,0,0,0,0,0]
["Slutdisponering, slam - lavteknologisk (slammineralisering), SRO","PE",10,0,0,0,0,0]
["Slutdisponering, slam - højteknologisk (slamtørring), Konstruktioner","PE",60,0,0,0,0,0]
["Slutdisponering, slam - højteknologisk (slamtørring), Mek/EL","PE",20,0,0,0,0,0]
["Slutdisponering, slam - højteknologisk (slamtørring), SRO","PE",10,0,0,0,0,0]
["Slutdisponering, slam - højteknologisk (slamtørring og -forbrænding), Konstruktioner","PE",60,0,0,0,0,0]
["Slutdisponering, slam - højteknologisk (slamtørring og -forbrænding), Mek/EL","PE",20,0,0,0,0,0]
["Slutdisponering, slam - højteknologisk (slamtørring og -forbrænding), SRO","PE",20,0,0,0,0,0]

{"sheet":"Distributionsanlæg","index":1,"n_rows":318,"n_cols":9,"rows_kept":318,"cut":false,"hidden":false,"merged":[[0,0,1,0],[0,1,1,1],[0,2,1,2],[0,3,1,3],[0,8,1,8],[0,4,1,4],[0,5,1,5],[0,6,1,6],[0,7,1,7]]}
["Distributionsanlæg","Enhed","Standard-levetid","Samlet mængde per 31/12-2022","Samlet mængde per 31/12-2023","Samlet mængde per 31/12-2024","Afvigelse 2022-2023","Afvigelse 2023-2024","Bemærkninger"]
[]
["Ledningsnet - Land",null,null,null,null,null,{"$f":"IF(D3=\"\",IF(E3>0,\"Ny data\",IF(E3=\"\",\"\",0)),IF(D3=0,IF(E3=0,0,\"Ny data\"),(E3-D3)/D3))","v":""},{"$f":"IF(E3=\"\",IF(F3>0,\"Ny data\",IF(F3=\"\",\"\",0)),IF(E3=0,IF(F3=0,0,\"Ny data\"),(F3-E3)/E3))","v":""}]
["Ledningsnet ≤ Ø 200 mm ","meter",75,10410.309000000005,14054,14054,0.3500079584573324,0,"Ledningsdatabasen er blevet gennemgået ift. zoner, korrekt registrering af ledninger og løbende kvalitetssikring de senere år. Det forklarer de væsentlige afvigelser på enkelte ledningskategorier, hvor tidligere data har været mangelfulde"]
["Ø 200 mm < Ledningsnet ≤ Ø 500 mm ","meter",75,6333.8300000000008,11377,11377,0.79622755899668896,0,"Ledningsdatabasen er blevet gennemgået ift. zoner, korrekt registrering af ledninger og løbende kvalitetssikring de senere år. Det forklarer de væsentlige afvigelser på enkelte ledningskategorier, hvor tidligere data har været mangelfulde"]
["Ø 500 mm < Ledningsnet ≤ Ø 800 mm","meter",75,1755.9590000000003,2818,2818,0.60482106928464707,0,"Ledningsdatabasen er blevet gennemgået ift. zoner, korrekt registrering af ledninger og løbende kvalitetssikring de senere år. Det forklarer de væsentlige afvigelser på enkelte ledningskategorier, hvor tidligere data har været mangelfulde"]
["Ø 800 mm < Ledningsnet ≤ Ø 1000 mm","meter",75,3743.4999999999995,4901,4901,0.30920261787097653,0,"Ledningsdatabasen er blevet gennemgået ift. zoner, korrekt registrering af ledninger og løbende kvalitetssikring de senere år. Det forklarer de væsentlige afvigelser på enkelte ledningskategorier, hvor tidligere data har været mangelfulde"]
["Ø 1000 mm < Ledningsnet ≤ Ø 1200 mm","meter",75,102.303,222,222,1.1700243394621859,0,"Ledningsdatabasen er blevet gennemgået ift. zoner, korrekt registrering af ledninger og løbende kvalitetssikring de senere år. Det forklarer de væsentlige afvigelser på enkelte ledningskategorier, hvor tidligere data har været mangelfulde"]
["Ø 1200 mm < Ledningsnet ≤ Ø 1600 mm","meter",75,19.971000000000458,4118,4118,205.19898853336866,0,"Ledningsdatabasen er blevet gennemgået ift. zoner, korrekt registrering af ledninger og løbende kvalitetssikring de senere år. Det forklarer de væsentlige afvigelser på enkelte ledningskategorier, hvor tidligere data har været mangelfulde"]
["Ledningsnet > Ø 1600 mm (rørbassiner og transportledninger)","meter",75,7.9000000000000001E-2,267,267,3378.746835443038,0,"Ledningsdatabasen er blevet gennemgået ift. zoner, korrekt registrering af ledninger og løbende kvalitetssikring de senere år. Det forklarer de væsentlige afvigelser på enkelte ledningskategorier, hvor tidligere data har været mangelfulde"]
["Strømpeforing ≤ Ø 200 mm","meter",50,1352.2890000000004,2366,2366,0.74962600450051675,0,"Ledningsdatabasen er blevet gennemgået ift. zoner, korrekt registrering af ledninger og løbende kvalitetssikring de senere år. Det forklarer de væsentlige afvigelser på enkelte ledningskategorier, hvor tidligere data har været mangelfulde"]
["Strømpeforing Ø 200 mm < Ledningsnet ≤ Ø 500 mm","meter",50,2458.9689999999996,3156,3156,0.28346473664369115,0,"Ledningsdatabasen er blevet gennemgået ift. zoner, korrekt registrering af ledninger og løbende kvalitetssikring de senere år. Det forklarer de væsentlige afvigelser på enkelte ledningskategorier, hvor tidligere data har været mangelfulde"]
["Strømpeforing Ø 500 mm < Ledningsnet ≤ Ø 800 mm","meter",50,429.09399999999999,545,545,0.27011796948920286,0,"Ledningsdatabasen er blevet gennemgået ift. zoner, korrekt registrering af ledninger og løbende kvalitetssikring de senere år. Det forklarer de væsentlige afvigelser på enkelte ledningskategorier, hvor tidligere data har været mangelfulde"]
["Strømpeforing Ø 800 mm < Ledningsnet ≤ Ø 1000 mm","meter",50,133.17699999999999,194,194,0.4567079901184139,0,"Ledningsdatabasen er blevet gennemgået ift. zoner, korrekt registrering af ledninger og løbende kvalitetssikring de senere år. Det forklarer de væsentlige afvigelser på enkelte ledningskategorier, hvor tidligere data har været mangelfulde"]
["Strømpeforing Ø 1000 mm < Ledningsnet ≤ Ø 1200 mm","meter",50,0,0,0,0,0]
["Strømpeforing Ø 1200 mm < Ledningsnet ≤ Ø 1600 mm","meter",50,0,0,0,0,0]
["Ledningsnet - By",null,null,null,null,null,"",""]
["Ledningsnet ≤ Ø 200 mm ","meter",75,181439,171807,171807,-5.3086712338582115E-2,0]
["Ø 200 mm < Ledningsnet ≤ Ø 500 mm ","meter",75,116275,112963,112963,-2.848419694689314E-2,0]
["Ø 500 mm < Ledningsnet ≤ Ø 800 mm","meter",75,21016,21728,21728,3.3878949371907122E-2,0]
["Ø 800 mm < Ledningsnet ≤ Ø 1000 mm","meter",75,9567.5850000000009,8897,8897,-7.0089264950350672E-2,0]
["Ø 1000 mm < Ledningsnet ≤ Ø 1200 mm","meter",75,2302,2649,2649,0.15073848827106864,0]
["Ø 1200 mm < Ledningsnet ≤ Ø 1600 mm","meter",75,2491.2889999999998,4034,4034,0.61924208712839035,0,"Ledningsdatabasen er blevet gennemgået ift. zoner, korrekt registrering af ledninger og løbende kvalitetssikring de senere år. Det forklarer de væsentlige afvigelser på enkelte ledningskategorier, hvor tidligere data har været mangelfulde"]
["Ledningsnet > Ø 1600 mm (rørbassiner og transportledninger)","meter",75,1104.5840000000003,1215,1215,9.9961614508267085E-2,0]
["Strømpeforing ≤ Ø 200 mm","meter",50,51806.571212562594,43745,43745,-0.15560904773037249,0]
["Strømpeforing Ø 200 mm < Ledningsnet ≤ Ø 500 mm","meter",50,30014.418650533345,26850,26850,-0.10542994976439815,0]
["Strømpeforing Ø 500 mm < Ledningsnet ≤ Ø 800 mm","meter",50,2498.0762562923696,3023,3023,0.21013119290710491,0,"Ledningsdatabasen er blevet gennemgået ift. zoner, korrekt registrering af ledninger og løbende kvalitetssikring de senere år. Det forklarer de væsentlige afvigelser på enkelte ledningskategorier, hvor tidligere data har været mangelfulde"]
["Strømpeforing Ø 800 mm < Ledningsnet ≤ Ø 1000 mm","meter",50,637.19299999999998,831,831,0.30415745307936531,0,"Ledningsdatabasen er blevet gennemgået ift. zoner, korrekt registrering af ledninger og løbende kvalitetssikring de senere år. Det forklarer de væsentlige afvigelser på enkelte ledningskategorier, hvor tidligere data har været mangelfulde"]
["Strømpeforing Ø 1000 mm < Ledningsnet ≤ Ø 1200 mm","meter",50,77.20999999999998,198,198,1.5644346587229641,0,"Ledningsdatabasen er blevet gennemgået ift. zoner, korrekt registrering af ledninger og løbende kvalitetssikring de senere år. Det forklarer de væsentlige afvigelser på enkelte ledningskategorier, hvor tidligere data har været mangelfulde"]
["Strømpeforing Ø 1200 mm < Ledningsnet ≤ Ø 1600 mm","meter",50,100.83600000000001,637,637,5.3171883057638141,0,"Ledningsdatabasen er blevet gennemgået ift. zoner, korrekt registrering af ledninger og løbende kvalitetssikring de senere år. Det forklarer de væsentlige afvigelser på enkelte ledningskategorier, hvor tidligere data har været mangelfulde"]
["Ledningsnet - City",null,null,null,null,null,"",""]
["Ledningsnet ≤ Ø 200 mm ","meter",75,55269,64022,64022,0.15837087698348079,0]
["Ø 200 mm < Ledningsnet ≤ Ø 500 mm ","meter",75,31188,41929,41929,0.3443952802359882,0,"Ledningsdatabasen er blevet gennemgået ift. zoner, korrekt registrering af ledninger og løbende kvalitetssikring de senere år. Det forklarer de væsentlige afvigelser på enkelte ledningskategorier, hvor tidligere data har været mangelfulde"]
["Ø 500 mm < Ledningsnet ≤ Ø 800 mm","meter",75,7116,8744,8744,0.22878021360314785,0,"Ledningsdatabasen er blevet gennemgået ift. zoner, korrekt registrering af ledninger og løbende kvalitetssikring de senere år. Det forklarer de væsentlige afvigelser på enkelte ledningskategorier, hvor tidligere data har været mangelfulde"]
["Ø 800 mm < Ledningsnet ≤ Ø 1000 mm","meter",75,2406.2629999999981,3422,3422,0.42212218697623771,0,"Ledningsdatabasen er blevet gennemgået ift. zoner, korrekt registrering af ledninger og løbende kvalitetssikring de senere år. Det forklarer de væsentlige afvigelser på enkelte ledningskategorier, hvor tidligere data har været mangelfulde"]
["Ø 1000 mm < Ledningsnet ≤ Ø 1200 mm","meter",75,1493,1642,1642,9.9799062290689883E-2,0]
["Ø 1200 mm < Ledningsnet ≤ Ø 1600 mm","meter",75,1322.491,1948,1948,0.47297788794025819,0,"Ledningsdatabasen er blevet gennemgået ift. zoner, korrekt registrering af ledninger og løbende kvalitetssikring de senere år. Det forklarer de væsentlige afvigelser på enkelte ledningskategorier, hvor tidligere data har været mangelfulde"]
["Ledningsnet > Ø 1600 mm (rørbassiner og transportledninger)","meter",75,319.02499999999998,218,218,-0.31666797272940989,0,"Ledningsdatabasen er blevet gennemgået ift. zoner, korrekt registrering af ledninger og løbende kvalitetssikring de senere år. Det forklarer de væsentlige afvigelser på enkelte ledningskategorier, hvor tidligere data har været mangelfulde"]
["Strømpeforing ≤ Ø 200 mm","meter",50,13418.942738099377,11319,11319,-0.15649092324816097,0]
["Strømpeforing Ø 200 mm < Ledningsnet ≤ Ø 500 mm","meter",50,5425.0891425122945,7007,7007,0.2915916800502823,0,"Ledningsdatabasen er blevet gennemgået ift. zoner, korrekt registrering af ledninger og løbende kvalitetssikring de senere år. Det forklarer de væsentlige afvigelser på enkelte ledningskategorier, hvor tidligere data har været mangelfulde"]
["Strømpeforing Ø 500 mm < Ledningsnet ≤ Ø 800 mm","meter",50,1043.3400000000001,1400,1400,0.34184446105775662,0,"Ledningsdatabasen er blevet gennemgået ift. zoner, korrekt registrering af ledninger og løbende kvalitetssikring de senere år. Det forklarer de væsentlige afvigelser på enkelte ledningskategorier, hvor tidligere data har været mangelfulde"]
["Strømpeforing Ø 800 mm < Ledningsnet ≤ Ø 1000 mm","meter",50,73.456999999999994,74,74,7.3920797201084496E-3,0]
["Strømpeforing Ø 1000 mm < Ledningsnet ≤ Ø 1200 mm","meter",50,0,50,50,"Ny data",0,"Ledningsdatabasen er blevet gennemgået ift. zoner, korrekt registrering af ledninger og løbende kvalitetssikring de senere år. Det forklarer de væsentlige afvigelser på enkelte ledningskategorier, hvor tidligere data har været mangelfulde"]
["Strømpeforing Ø 1200 mm < Ledningsnet ≤ Ø 1600 mm","meter",50,103.821,104,104,1.7241213242022524E-3,0]
["Ledningsnet - Indre city",null,null,null,null,null,"",""]
["Ledningsnet ≤ Ø 200 mm ","meter",75,0,0,0,0,0]
["Ø 200 mm < Ledningsnet ≤ Ø 500 mm ","meter",75,0,0,0,0,0]
["Ø 500 mm < Ledningsnet ≤ Ø 800 mm","meter",75,0,0,0,0,0]
["Ø 800 mm < Ledningsnet ≤ Ø 1000 mm","meter",75,0,0,0,0,0]
["Ø 1000 mm < Ledningsnet ≤ Ø 1200 mm","meter",75,0,0,0,0,0]
["Ø 1200 mm < Ledningsnet ≤ Ø 1600 mm","meter",75,0,0,0,0,0]
["Ledningsnet > Ø 1600 mm (rørbassiner og transportledninger)","meter",75,0,0,0,0,0]
["Strømpeforing ≤ Ø 200 mm","meter",50,0,0,0,0,0]
["Strømpeforing Ø 200 mm < Ledningsnet ≤ Ø 500 mm","meter",50,0,0,0,0,0]
["Strømpeforing Ø 500 mm < Ledningsnet ≤ Ø 800 mm","meter",50,0,0,0,0,0]
["Strømpeforing Ø 800 mm < Ledningsnet ≤ Ø 1000 mm","meter",50,0,0,0,0,0]
["Strømpeforing Ø 1000 mm < Ledningsnet ≤ Ø 1200 mm","meter",50,0,0,0,0,0]
["Strømpeforing Ø 1200 mm < Ledningsnet ≤ Ø 1600 mm","meter",50,0,0,0,0,0]
["Brønde og stik, ledningsnet - Land",null,null,null,null,null,"",""]
["Brønde","stk.",75,454,594,594,0.30837004405286345,0,"Validering af data og ændring af zone, så byzone falder tilsvarende "]
["Stik","stk.",75,143,437,437,2.0559440559440558,0,"Validering af data og ændring af zone, så byzone falder tilsvarende "]
["Brønde og stik, ledningsnet - By",null,null,null,null,null,"",""]
["Brønde","stk.",75,9554,9753,9753,2.0828972158258321E-2,0]
["Stik","stk.",75,10712,10016,10016,-6.4973861090365945E-2,0]
["Brønde og stik, ledningsnet - City",null,null,null,null,null,"",""]
["Brønde","stk.",75,3222,2822,2822,-0.12414649286157665,0]
["Stik","stk.",75,3796,3928,3928,{"$f":"IF(D67=\"\",IF(E67>0,\"Ny data\",IF(E67=\"\",\"\",0)),IF(D67=0,IF(E67=0,0,\"Ny data\"),(E67-D67)/D67))","v":3.4773445732349841E-2},{"$f":"IF(E67=\"\",IF(F67>0,\"Ny data\",IF(F67=\"\",\"\",0)),IF(E67=0,IF(F67=0,0,\"Ny data\"),(F67-E67)/E67))","v":0}]
["Brønde og stik, ledningsnet - Indre city",null,null,null,null,null,"",""]
["Brønde","stk.",75,0,0,0,0,0]
["Stik","stk.",75,0,0,0,0,0]
["Små pumpestationer (<100 l/s) inkl. SRO-anlæg - Land",null,null,null,null,null,"",""]
["Tryksatte minipumpestationer (husstandssystemer)","stk.",30,0,0,0,0,0]
["Pumpestationer i brønde (< 6,25 m2), Konstruktioner","stk.",50,3,2,2,-0.33333333333333331,0,"Pumpestationer er blevet gennemgået af driftsteamet, og indberettet jf. vejledningen. Det betyder, at en del pumper skifter til store pumpestationer over 100 l/s"]
["Pumpestationer i brønde (< 6,25 m2), Mek/EL","stk.",20,3,4,4,0.33333333333333331,0,"Pumpestationer er blevet gennemgået af driftsteamet, og indberettet jf. vejledningen. "]
["Pumpestationer i brønde (< 6,25 m2), SRO","stk.",10,3,2,2,-0.33333333333333331,0,"Pumpestationer er blevet gennemgået af driftsteamet, og indberettet jf. vejledningen. "]
["Pumpestationer m. overbygning (< 20 m2), Konstruktioner","stk.",50,0,0,0,0,0]
["Pumpestationer m. overbygning (< 20 m2), Mek/EL","stk.",20,0,0,0,0,0]
["Pumpestationer m. overbygning (< 20 m2), SRO","stk.",10,0,0,0,0,0]
["Pumpestationer i underjordiske bygværker (<50 m2), Konstruktioner","stk.",50,0,0,0,0,0]
["Pumpestationer i underjordiske bygværker (<50 m2), Mek/El","stk.",20,0,0,0,0,0]
["Pumpestationer i underjordiske bygværker (<50 m2), SRO","stk.",10,0,0,0,0,0]
["Små pumpestationer (<100 l/s) inkl. SRO-anlæg - By",null,null,0,null,null,0,""]
["Tryksatte minipumpestationer (husstandssystemer)","stk.",30,2,1,1,-0.5,0,"Pumpestationer er blevet gennemgået af driftsteamet, og indberettet jf. vejledningen. Det betyder, at en del pumper skifter til store pumpestationer over 100 l/s"]
["Pumpestationer i brønde (< 6,25 m2), Konstruktioner","stk.",50,12,10,10,-0.16666666666666666,0]
["Pumpestationer i brønde (< 6,25 m2), Mek/EL","stk.",20,12,17,17,0.41666666666666669,0,"Pumpestationer er blevet gennemgået af driftsteamet, og indberettet jf. vejledningen. Det betyder, at en del pumper skifter til store pumpestationer over 100 l/s"]
["Pumpestationer i brønde (< 6,25 m2), SRO","stk.",10,12,10,10,-0.16666666666666666,0]
["Pumpestationer m. overbygning (< 20 m2), Konstruktioner","stk.",50,6,1,1,-0.83333333333333337,0,"Pumpestationer er blevet gennemgået af driftsteamet, og indberettet jf. vejledningen. Det betyder, at en del pumper skifter til store pumpestationer over 100 l/s"]
["Pumpestationer m. overbygning (< 20 m2), Mek/EL","stk.",20,6,2,2,-0.66666666666666663,0,"Pumpestationer er blevet gennemgået af driftsteamet, og indberettet jf. vejledningen. Det betyder, at en del pumper skifter til store pumpestationer over 100 l/s"]
["Pumpestationer m. overbygning (< 20 m2), SRO","stk.",10,6,1,1,-0.83333333333333337,0,"Pumpestationer er blevet gennemgået af driftsteamet, og indberettet jf. vejledningen. Det betyder, at en del pumper skifter til store pumpestationer over 100 l/s"]
["Pumpestationer i underjordiske bygværker (<50 m2), Konstruktioner","stk.",50,10,6,6,-0.4,0,"Pumpestationer er blevet gennemgået af driftsteamet, og indberettet jf. vejledningen. Det betyder, at en del pumper skifter til store pumpestationer over 100 l/s"]
["Pumpestationer i underjordiske bygværker (<50 m2), Mek/El","stk.",20,10,8,8,-0.2,0,"Pumpestationer er blevet gennemgået af driftsteamet, og indberettet jf. vejledningen. Det betyder, at en del pumper skifter til store pumpestationer over 100 l/s"]
["Pumpestationer i underjordiske bygværker (<50 m2), SRO","stk.",10,10,6,6,-0.4,0,"Pumpestationer er blevet gennemgået af driftsteamet, og indberettet jf. vejledningen. Det betyder, at en del pumper skifter til store pumpestationer over 100 l/s"]
["Små pumpestationer (<100 l/s) inkl. SRO-anlæg - City",null,null,null,null,null,"",""]
["Tryksatte minipumpestationer (husstandssystemer)","stk.",30,0,0,0,0,0]
["Pumpestationer i brønde (< 6,25 m2), Konstruktioner","stk.",50,3,2,2,-0.33333333333333331,0,"Pumpestationer er blevet gennemgået af driftsteamet, og indberettet jf. vejledningen. Det betyder, at en del pumper skifter til store pumpestationer over 100 l/s"]
["Pumpestationer i brønde (< 6,25 m2), Mek/EL","stk.",20,3,3,3,0,0,"Pumpestationer er blevet gennemgået af driftsteamet, og indberettet jf. vejledningen. Det betyder, at en del pumper skifter til store pumpestationer over 100 l/s"]
["Pumpestationer i brønde (< 6,25 m2), SRO","stk.",10,3,2,2,-0.33333333333333331,0,"Pumpestationer er blevet gennemgået af driftsteamet, og indberettet jf. vejledningen. Det betyder, at en del pumper skifter til store pumpestationer over 100 l/s"]
["Pumpestationer m. overbygning (< 20 m2), Konstruktioner","stk.",50,0,0,0,0,0]
["Pumpestationer m. overbygning (< 20 m2), Mek/EL","stk.",20,0,0,0,0,0]
["Pumpestationer m. overbygning (< 20 m2), SRO","stk.",10,0,0,0,0,0]
["Pumpestationer i underjordiske bygværker (<50 m2), Konstruktioner","stk.",50,1,0,0,-1,0,"Pumpestationer er blevet gennemgået af driftsteamet, og indberettet jf. vejledningen. Det betyder, at en del pumper skifter til store pumpestationer over 100 l/s"]
["Pumpestationer i underjordiske bygværker (<50 m2), Mek/El","stk.",20,1,0,0,-1,0,"Pumpestationer er blevet gennemgået af driftsteamet, og indberettet jf. vejledningen. Det betyder, at en del pumper skifter til store pumpestationer over 100 l/s"]
["Pumpestationer i underjordiske bygværker (<50 m2), SRO","stk.",10,1,0,0,-1,0,"Pumpestationer er blevet gennemgået af driftsteamet, og indberettet jf. vejledningen. Det betyder, at en del pumper skifter til store pumpestationer over 100 l/s"]
["Små pumpestationer (<100 l/s) inkl. SRO-anlæg - Indre city",null,null,null,null,null,"",""]
["Tryksatte minipumpestationer (husstandssystemer)","stk.",30,0,0,0,0,0]
["Pumpestationer i brønde (< 6,25 m2), Konstruktioner","stk.",50,0,0,0,0,0]
["Pumpestationer i brønde (< 6,25 m2), Mek/EL","stk.",20,0,0,0,0,0]
["Pumpestationer i brønde (< 6,25 m2), SRO","stk.",10,0,0,0,0,0]
["Pumpestationer m. overbygning (< 20 m2), Konstruktioner","stk.",50,0,0,0,0,0]
["Pumpestationer m. overbygning (< 20 m2), Mek/EL","stk.",20,0,0,0,0,0]
["Pumpestationer m. overbygning (< 20 m2), SRO","stk.",10,0,0,0,0,0]
["Pumpestationer i underjordiske bygværker (<50 m2), Konstruktioner","stk.",50,0,0,0,0,0]
["Pumpestationer i underjordiske bygværker (<50 m2), Mek/El","stk.",20,0,0,0,0,0]
["Pumpestationer i underjordiske bygværker (<50 m2), SRO","stk.",10,0,0,0,0,0]
["Store pumpestationer: inkl. SRO-anlæg - Land",null,null,null,null,null,"",""]
["Kælder","m2",75,0,1.6,1.6,"Ny data",0,"Pumpestationer er blevet gennemgået af driftsteamet, og indberettet jf. vejledningen. Det betyder, at en del pumper skifter til store pumpestationer over 100 l/s"]
["Pumpeinstallation Miljøklasse A (100-300 l/s) - Mek/EL","stk.",20,0,1,1,"Ny data",0,"Pumpestationer er blevet gennemgået af driftsteamet, og indberettet jf. vejledningen. Det betyder, at en del pumper skifter til store pumpestationer over 100 l/s"]
["Pumpeinstallation Miljøklasse A (100-300 l/s) - SRO","stk.",10,0,1,1,"Ny data",0,"Pumpestationer er blevet gennemgået af driftsteamet, og indberettet jf. vejledningen. Det betyder, at en del pumper skifter til store pumpestationer over 100 l/s"]
["Pumpeinstallation Miljøklasse A (300-600 l/s) - Mek/EL","stk.",20,0,0,0,0,0]
["Pumpeinstallation Miljøklasse A (300-600 l/s) - SRO","stk.",10,0,0,0,0,0]
["Pumpeinstallation Miljøklasse A (600-1.000 l/s) - Mek/EL","stk.",20,0,0,0,0,0]
["Pumpeinstallation Miljøklasse A (600-1.000 l/s) - SRO","stk.",10,0,0,0,0,0]
["Pumpeinstallation Miljøklasse A (1.000-1.500 l/s) - Mek/EL","stk.",20,0,0,0,0,0]
["Pumpeinstallation Miljøklasse A (1.000-1.500 l/s) - SRO","stk.",10,0,0,0,0,0]
["Pumpeinstallation Miljøklasse B (100-300 l/s) - Mek/EL","stk.",20,0,0,0,0,0]
["Pumpeinstallation Miljøklasse B (100-300 l/s) - SRO","stk.",10,0,0,0,0,0]
["Pumpeinstallation Miljøklasse B (300-600 l/s) - Mek/EL","stk.",20,0,0,0,0,0]
["Pumpeinstallation Miljøklasse B (300-600 l/s) - SRO","stk.",10,0,0,0,0,0]
["Pumpeinstallation Miljøklasse B (600-1.000 l/s) - Mek/EL","stk.",20,0,0,0,0,0]
["Pumpeinstallation Miljøklasse B (600-1.000 l/s) - SRO","stk.",10,0,0,0,0,0]
["Pumpeinstallation Miljøklasse B (1.000-1.500 l/s) - Mek/EL","stk.",20,0,0,0,{"$f":"IF(D131=\"\",IF(E131>0,\"Ny data\",IF(E131=\"\",\"\",0)),IF(D131=0,IF(E131=0,0,\"Ny data\"),(E131-D131)/D131))","v":0},{"$f":"IF(E131=\"\",IF(F131>0,\"Ny data\",IF(F131=\"\",\"\",0)),IF(E131=0,IF(F131=0,0,\"Ny data\"),(F131-E131)/E131))","v":0}]
["Pumpeinstallation Miljøklasse B (1.000-1.500 l/s) - SRO","stk.",10,0,0,0,0,0]
["Overbygning","m2",75,0,0,0,0,0]
["Store pumpestationer: inkl. SRO-anlæg - By",null,null,null,null,null,"",""]
["Kælder","m2",75,26,248.12,248.12,8.5430769230769226,0,"Pumpestationer er blevet gennemgået af driftsteamet, og indberettet jf. vejledningen. Det betyder, at en del pumper skifter til store pumpestationer over 100 l/s"]
["Pumpeinstallation Miljøklasse A (100-300 l/s) - Mek/EL","stk.",20,1,12,12,11,0,"Pumpestationer er blevet gennemgået af driftsteamet, og indberettet jf. vejledningen. Det betyder, at en del pumper skifter til store pumpestationer over 100 l/s"]
["Pumpeinstallation Miljøklasse A (100-300 l/s) - SRO","stk.",10,1,12,12,11,0,"Pumpestationer er blevet gennemgået af driftsteamet, og indberettet jf. vejledningen. Det betyder, at en del pumper skifter til store pumpestationer over 100 l/s"]
["Pumpeinstallation Miljøklasse A (300-600 l/s) - Mek/EL","stk.",20,2,3,3,0.5,0,"Pumpestationer er blevet gennemgået af driftsteamet, og indberettet jf. vejledningen. Det betyder, at en del pumper skifter til store pumpestationer over 100 l/s"]
["Pumpeinstallation Miljøklasse A (300-600 l/s) - SRO","stk.",10,2,3,3,0.5,0,"Pumpestationer er blevet gennemgået af driftsteamet, og indberettet jf. vejledningen. Det betyder, at en del pumper skifter til store pumpestationer over 100 l/s"]
["Pumpeinstallation Miljøklasse A (600-1.000 l/s) - Mek/EL","stk.",20,0,1,1,"Ny data",0,"Pumpestationer er blevet gennemgået af driftsteamet, og indberettet jf. vejledningen. Det betyder, at en del pumper skifter til store pumpestationer over 100 l/s"]
["Pumpeinstallation Miljøklasse A (600-1.000 l/s) - SRO","stk.",10,0,1,1,"Ny data",0,"Pumpestationer er blevet gennemgået af driftsteamet, og indberettet jf. vejledningen. Det betyder, at en del pumper skifter til store pumpestationer over 100 l/s"]
["Pumpeinstallation Miljøklasse A (1.000-1.500 l/s) - Mek/EL","stk.",20,0,0,0,0,0]
["Pumpeinstallation Miljøklasse A (1.000-1.500 l/s) - SRO","stk.",10,0,0,0,0,0]
["Pumpeinstallation Miljøklasse B (100-300 l/s) - Mek/EL","stk.",20,0,0,0,0,0]
["Pumpeinstallation Miljøklasse B (100-300 l/s) - SRO","stk.",10,0,0,0,0,0]
["Pumpeinstallation Miljøklasse B (300-600 l/s) - Mek/EL","stk.",20,0,0,0,0,0]
["Pumpeinstallation Miljøklasse B (300-600 l/s) - SRO","stk.",10,0,0,0,0,0]
["Pumpeinstallation Miljøklasse B (600-1.000 l/s) - Mek/EL","stk.",20,0,0,0,0,0]
["Pumpeinstallation Miljøklasse B (600-1.000 l/s) - SRO","stk.",10,0,0,0,0,0]
["Pumpeinstallation Miljøklasse B (1.000-1.500 l/s) - Mek/EL","stk.",20,0,0,0,0,0]
["Pumpeinstallation Miljøklasse B (1.000-1.500 l/s) - SRO","stk.",10,0,0,0,0,0]
["Overbygning ","m2",75,11,158.69999999999999,158.69999999999999,13.427272727272726,0,"Pumpestationer er blevet gennemgået af driftsteamet, og indberettet jf. vejledningen. Det betyder, at en del pumper skifter til store pumpestationer over 100 l/s"]
["Store pumpestationer: inkl. SRO-anlæg - City",null,null,null,null,null,"",""]
["Kælder","m2",75,0,21,21,"Ny data",0,"Pumpestationer er blevet gennemgået af driftsteamet, og indberettet jf. vejledningen. Det betyder, at en del pumper skifter til store pumpestationer over 100 l/s"]
["Pumpeinstallation Miljøklasse A (100-300 l/s) - Mek/EL","stk.",20,0,3,3,"Ny data",0,"Pumpestationer er blevet gennemgået af driftsteamet, og indberettet jf. vejledningen. Det betyder, at en del pumper skifter til store pumpestationer over 100 l/s"]
["Pumpeinstallation Miljøklasse A (100-300 l/s) - SRO","stk.",10,0,3,3,"Ny data",0,"Pumpestationer er blevet gennemgået af driftsteamet, og indberettet jf. vejledningen. Det betyder, at en del pumper skifter til store pumpestationer over 100 l/s"]
["Pumpeinstallation Miljøklasse A (300-600 l/s) - Mek/EL","stk.",20,0,1,1,"Ny data",0,"Pumpestationer er blevet gennemgået af driftsteamet, og indberettet jf. vejledningen. Det betyder, at en del pumper skifter til store pumpestationer over 100 l/s"]
["Pumpeinstallation Miljøklasse A (300-600 l/s) - SRO","stk.",10,0,1,1,"Ny data",0,"Pumpestationer er blevet gennemgået af driftsteamet, og indberettet jf. vejledningen. Det betyder, at en del pumper skifter til store pumpestationer over 100 l/s"]
["Pumpeinstallation Miljøklasse A (600-1.000 l/s) - Mek/EL","stk.",20,0,0,0,0,0]
["Pumpeinstallation Miljøklasse A (600-1.000 l/s) - SRO","stk.",10,0,0,0,0,0]
["Pumpeinstallation Miljøklasse A (1.000-1.500 l/s) - Mek/EL","stk.",20,0,0,0,0,0]
["Pumpeinstallation Miljøklasse A (1.000-1.500 l/s) - SRO","stk.",10,0,0,0,0,0]
["Pumpeinstallation Miljøklasse B (100-300 l/s) - Mek/EL","stk.",20,0,0,0,0,0]
["Pumpeinstallation Miljøklasse B (100-300 l/s) - SRO","stk.",10,0,0,0,0,0]
["Pumpeinstallation Miljøklasse B (300-600 l/s) - Mek/EL","stk.",20,0,0,0,0,0]
["Pumpeinstallation Miljøklasse B (300-600 l/s) - SRO","stk.",10,0,0,0,0,0]
["Pumpeinstallation Miljøklasse B (600-1.000 l/s) - Mek/EL","stk.",20,0,0,0,0,0]
["Pumpeinstallation Miljøklasse B (600-1.000 l/s) - SRO","stk.",10,0,0,0,0,0]
["Pumpeinstallation Miljøklasse B (1.000-1.500 l/s) - Mek/EL","stk.",20,0,0,0,0,0]
["Pumpeinstallation Miljøklasse B (1.000-1.500 l/s) - SRO","stk.",10,0,0,0,0,0]
["Overbygning ","m2",75,0,13.5,13.5,"Ny data",0,"Pumpestationer er blevet gennemgået af driftsteamet, og indberettet jf. vejledningen. Det betyder, at en del pumper skifter til store pumpestationer over 100 l/s"]
["Store pumpestationer: inkl. SRO-anlæg - Indre city",null,null,null,null,null,"",""]
["Kælder","m2",75,0,0,0,0,0]
["Pumpeinstallation Miljøklasse A (100-300 l/s) - Mek/EL","stk.",20,0,0,0,0,0]
["Pumpeinstallation Miljøklasse A (100-300 l/s) - SRO","stk.",10,0,0,0,0,0]
["Pumpeinstallation Miljøklasse A (300-600 l/s) - Mek/EL","stk.",20,0,0,0,0,0]
["Pumpeinstallation Miljøklasse A (300-600 l/s) - SRO","stk.",10,0,0,0,0,0]
["Pumpeinstallation Miljøklasse A (600-1.000 l/s) - Mek/EL","stk.",20,0,0,0,0,0]
["Pumpeinstallation Miljøklasse A (600-1.000 l/s) - SRO","stk.",10,0,0,0,0,0]
["Pumpeinstallation Miljøklasse A (1.000-1.500 l/s) - Mek/EL","stk.",20,0,0,0,0,0]
["Pumpeinstallation Miljøklasse A (1.000-1.500 l/s) - SRO","stk.",10,0,0,0,0,0]
["Pumpeinstallation Miljøklasse B (100-300 l/s) - Mek/EL","stk.",20,0,0,0,0,0]
["Pumpeinstallation Miljøklasse B (100-300 l/s) - SRO","stk.",10,0,0,0,0,0]
["Pumpeinstallation Miljøklasse B (300-600 l/s) - Mek/EL","stk.",20,0,0,0,0,0]
["Pumpeinstallation Miljøklasse B (300-600 l/s) - SRO","stk.",10,0,0,0,0,0]
["Pumpeinstallation Miljøklasse B (600-1.000 l/s) - Mek/EL","stk.",20,0,0,0,0,0]
["Pumpeinstallation Miljøklasse B (600-1.000 l/s) - SRO","stk.",10,0,0,0,0,0]
["Pumpeinstallation Miljøklasse B (1.000-1.500 l/s) - Mek/EL","stk.",20,0,0,0,0,0]
["Pumpeinstallation Miljøklasse B (1.000-1.500 l/s) - SRO","stk.",10,0,0,0,0,0]
["Overbygning","m2",75,0,0,0,0,0]
["Overløbsbygværker - Land",null,null,null,null,null,"",""]
["Kælder (< 7 m2) ","stk.",75,0,0,0,0,0]
["Kælder (7 - 20 m2) ","m2",75,0,0,0,0,0]
["Kælder (20 - 30 m2)","m2",75,0,0,0,0,0]
["Installationer (mindre end 7 m2)","stk.",20,0,0,0,{"$f":"IF(D195=\"\",IF(E195>0,\"Ny data\",IF(E195=\"\",\"\",0)),IF(D195=0,IF(E195=0,0,\"Ny data\"),(E195-D195)/D195))","v":0},{"$f":"IF(E195=\"\",IF(F195>0,\"Ny data\",IF(F195=\"\",\"\",0)),IF(E195=0,IF(F195=0,0,\"Ny data\"),(F195-E195)/E195))","v":0}]
["Installationer, Miljøklasse A. (7-20 m2) - Mek/EL","stk.",20,0,0,0,0,0]
["Installationer, Miljøklasse A. (7-20 m2) - SRO","stk.",10,0,0,0,0,0]
["Installationer, Miljøklasse A. (20-30 m2) - Mek/EL","stk.",20,0,0,0,0,0]
["Installationer, Miljøklasse A. (20-30 m2) - SRO","stk.",10,0,0,0,0,0]
["Installationer, Miljøklasse B. (7-20 m2) - Mek/EL","stk.",20,0,0,0,0,0]
["Installationer, Miljøklasse B. (7-20 m2) - SRO","stk.",10,0,0,0,0,0]
["Installationer, Miljøklasse B. (20-30 m2) - Mek/EL","stk.",20,0,0,0,0,0]
["Installationer, Miljøklasse B. (20-30 m2) - SRO","stk.",10,0,0,0,0,0]
["Overbygning","stk.",75,0,0,0,0,0]
["Overløbsbygværker - By",null,null,null,null,null,"",""]
["Kælder (< 7 m2) ","stk.",75,3,0,0,-1,0,"Ingen overløbsbygværker - det er typisk en del af bassin eller pumpestation"]
["Kælder (7 - 20 m2) ","m2",75,38,0,0,-1,0,"Ingen overløbsbygværker - det er typisk en del af bassin eller pumpestation"]
["Kælder (20 - 30 m2)","m2",75,160.30000000000001,0,0,-1,0,"Ingen overløbsbygværker - det er typisk en del af bassin eller pumpestation"]
["Installationer (mindre end 7 m2)","stk.",20,3,0,0,-1,0,"Ingen overløbsbygværker - det er typisk en del af bassin eller pumpestation"]
["Installationer, Miljøklasse A. (7-20 m2) - Mek/EL","stk.",20,0,0,0,0,0]
["Installationer, Miljøklasse A. (7-20 m2) - SRO","stk.",10,0,0,0,0,0]
["Installationer, Miljøklasse A. (20-30 m2) - Mek/EL","stk.",20,0,0,0,0,0]
["Installationer, Miljøklasse A. (20-30 m2) - SRO","stk.",10,0,0,0,0,0]
["Installationer, Miljøklasse B. (7-20 m2) - Mek/EL","stk.",20,3,0,0,-1,0,"Ingen overløbsbygværker - det er typisk en del af bassin eller pumpestation"]
["Installationer, Miljøklasse B. (7-20 m2) - SRO","stk.",10,0,0,0,0,0]
["Installationer, Miljøklasse B. (20-30 m2) - Mek/EL","stk.",20,0,0,0,0,0]
["Installationer, Miljøklasse B. (20-30 m2) - SRO","stk.",10,0,0,0,0,0]
["Overbygning","stk.",75,1,0,0,-1,0,"Ingen overløbsbygværker - det er typisk en del af bassin eller pumpestation"]
["Overløbsbygværker - City",null,null,null,null,null,"",""]
["Kælder (< 7 m2) ","stk.",75,2,0,0,-1,0,"Ingen overløbsbygværker - det er typisk en del af bassin eller pumpestation"]
["Kælder (7 - 20 m2) ","m2",75,0,0,0,0,0]
["Kælder (20 - 30 m2)","m2",75,0,0,0,0,0]
["Installationer (mindre end 7 m2)","stk.",20,2,0,0,-1,0,"Ingen overløbsbygværker - det er typisk en del af bassin eller pumpestation"]
["Installationer, Miljøklasse A. (7-20 m2) - Mek/EL","stk.",20,0,0,0,0,0]
["Installationer, Miljøklasse A. (7-20 m2) - SRO","stk.",10,0,0,0,0,0]
["Installationer, Miljøklasse A. (20-30 m2) - Mek/EL","stk.",20,1,0,0,-1,0,"Ingen overløbsbygværker - det er typisk en del af bassin eller pumpestation"]
["Installationer, Miljøklasse A. (20-30 m2) - SRO","stk.",10,1,0,0,-1,0,"Ingen overløbsbygværker - det er typisk en del af bassin eller pumpestation"]
["Installationer, Miljøklasse B. (7-20 m2) - Mek/EL","stk.",20,0,0,0,0,0]
["Installationer, Miljøklasse B. (7-20 m2) - SRO","stk.",10,0,0,0,0,0]
["Installationer, Miljøklasse B. (20-30 m2) - Mek/EL","stk.",20,0,0,0,0,0]
["Installationer, Miljøklasse B. (20-30 m2) - SRO","stk.",10,0,0,0,0,0]
["Overbygning (efter beliggenhed) ","stk.",75,0,0,0,0,0]
["Overløbsbygværker - Indre city",null,null,null,null,null,"",""]
["Kælder (< 7 m2) ","stk.",75,0,0,0,0,0]
["Kælder (7 - 20 m2) ","m2",75,0,0,0,0,0]
["Kælder (20 - 30 m2)","m2",75,0,0,0,0,0]
["Installationer (mindre end 7 m2)","stk.",20,0,0,0,0,0]
["Installationer, Miljøklasse A. (7-20 m2) - Mek/EL","stk.",20,0,0,0,0,0]
["Installationer, Miljøklasse A. (7-20 m2) - SRO","stk.",10,0,0,0,0,0]
["Installationer, Miljøklasse A. (20-30 m2) - Mek/EL","stk.",20,0,0,0,0,0]
["Installationer, Miljøklasse A. (20-30 m2) - SRO","stk.",10,0,0,0,0,0]
["Installationer, Miljøklasse B. (7-20 m2) - Mek/EL","stk.",20,0,0,0,0,0]
["Installationer, Miljøklasse B. (7-20 m2) - SRO","stk.",10,0,0,0,0,0]
["Installationer, Miljøklasse B. (20-30 m2) - Mek/EL","stk.",20,0,0,0,0,0]
["Installationer, Miljøklasse B. (20-30 m2) - SRO","stk.",10,0,0,0,0,0]
["Overbygning","stk.",75,0,0,0,0,0]
["Forsinkelsesbassiner - Land",null,null,null,null,null,"",""]
["Forsinkelsesbassiner, lukkede uden automatisk rensning og SRO (mindre end 1.000 m3)","m³",50,155,194,194,0.25161290322580643,0,"Bassinet er gået efter og opmålt"]
["Forsinkelsesbassiner, lukkede med automatisk rensning og SRO (mindre end 1.000 m3) - Konstruktioner","m³",75,0,0,0,0,0]
["Forsinkelsesbassiner, lukkede med automatisk rensning og SRO (mindre end 1.000 m3) - Mek/EL","m³",20,0,0,0,0,0]
["Forsinkelsesbassiner, lukkede med automatisk rensning og SRO (mindre end 1.000 m3) - SRO ","m³",10,0,0,0,0,0]
["Forsinkelsesbassiner, lukkede (1.000-4.000 m3) - Konstruktioner","m³",75,0,0,0,0,0]
["Forsinkelsesbassiner, lukkede (1.000-4.000 m3) - Mek/EL","m³",20,0,0,0,0,0]
["Forsinkelsesbassiner, lukkede (1.000-4.000 m3) - SRO","m³",10,0,0,0,0,0]
["Forsinkelsesbassiner, lukkede (4.000-10.000 m3) - Konstruktioner","m³",75,0,0,0,0,0]
["Forsinkelsesbassiner, lukkede (4.000-10.000 m3) - Mek/EL","m³",20,0,0,0,0,0]
["Forsinkelsesbassiner, lukkede (4.000-10.000 m3) - SRO","m³",10,0,0,0,0,0]
["Forsinkelsesbassiner, lukkede (større end 10.000 m3) - Konstruktioner","m³",75,0,0,0,0,0]
["Forsinkelsesbassiner, lukkede (større end 10.000 m3) - Mek/EL","m³",20,0,0,0,{"$f":"IF(D259=\"\",IF(E259>0,\"Ny data\",IF(E259=\"\",\"\",0)),IF(D259=0,IF(E259=0,0,\"Ny data\"),(E259-D259)/D259))","v":0},{"$f":"IF(E259=\"\",IF(F259>0,\"Ny data\",IF(F259=\"\",\"\",0)),IF(E259=0,IF(F259=0,0,\"Ny data\"),(F259-E259)/E259))","v":0}]
["Forsinkelsesbassiner, lukkede (større end 10.000 m3) - SRO","m³",10,0,0,0,0,0]
["Forsinkelsesbassiner - By",null,null,null,null,null,"",""]
["Forsinkelsesbassiner, lukkede uden automatisk rensning og SRO (mindre end 1.000 m3)","m³",50,2382,2826,2826,0.18639798488664988,0,"Fejl i tidligere indberetninger. Bassiner har været indberettet under åbne bassiner, men det er i virkeligheden lukket bassiner der håndterer fælles- og spildevand. Alle bassiner er blevet gennemgået ifm. årets indberetning "]
["Forsinkelsesbassiner, lukkede med automatisk rensning og SRO (mindre end 1.000 m3) - Konstruktioner","m³",75,3220,2548,2548,-0.20869565217391303,0,"Fejl i tidligere indberetninger. Bassiner har været indberettet under åbne bassiner, men det er i virkeligheden lukket bassiner der håndterer fælles- og spildevand. Alle bassiner er blevet gennemgået ifm. årets indberetning "]
["Forsinkelsesbassiner, lukkede med automatisk rensning og SRO (mindre end 1.000 m3) - Mek/EL","m³",20,3220,2548,2548,-0.20869565217391303,0,"Fejl i tidligere indberetninger. Bassiner har været indberettet under åbne bassiner, men det er i virkeligheden lukket bassiner der håndterer fælles- og spildevand. Alle bassiner er blevet gennemgået ifm. årets indberetning "]
["Forsinkelsesbassiner, lukkede med automatisk rensning og SRO (mindre end 1.000 m3) - SRO ","m³",10,1440,2548,2548,0.76944444444444449,0,"Fejl i tidligere indberetninger. Bassiner har været indberettet under åbne bassiner, men det er i virkeligheden lukket bassiner der håndterer fælles- og spildevand. Alle bassiner er blevet gennemgået ifm. årets indberetning "]
["Forsinkelsesbassiner, lukkede (1.000-4.000 m3) - Konstruktioner","m³",75,2360,14617,14617,5.19364406779661,0,"Fejl i tidligere indberetninger. Bassiner har været indberettet under åbne bassiner, men det er i virkeligheden lukket bassiner der håndterer fælles- og spildevand. Alle bassiner er blevet gennemgået ifm. årets indberetning "]
["Forsinkelsesbassiner, lukkede (1.000-4.000 m3) - Mek/EL","m³",20,2360,14617,14617,5.19364406779661,0,"Fejl i tidligere indberetninger. Bassiner har været indberettet under åbne bassiner, men det er i virkeligheden lukket bassiner der håndterer fælles- og spildevand. Alle bassiner er blevet gennemgået ifm. årets indberetning "]
["Forsinkelsesbassiner, lukkede (1.000-4.000 m3) - SRO","m³",10,8910,14617,14617,0.64051627384960719,0,"Fejl i tidligere indberetninger. Bassiner har været indberettet under åbne bassiner, men det er i virkeligheden lukket bassiner der håndterer fælles- og spildevand. Alle bassiner er blevet gennemgået ifm. årets indberetning "]
["Forsinkelsesbassiner, lukkede (4.000-10.000 m3) - Konstruktioner","m³",75,0,13847,13847,"Ny data",0,"Fejl i tidligere indberetninger. Bassiner har været indberettet under åbne bassiner, men det er i virkeligheden lukket bassiner der håndterer fælles- og spildevand. Alle bassiner er blevet gennemgået ifm. årets indberetning "]
["Forsinkelsesbassiner, lukkede (4.000-10.000 m3) - Mek/EL","m³",20,0,13847,13847,"Ny data",0,"Fejl i tidligere indberetninger. Bassiner har været indberettet under åbne bassiner, men det er i virkeligheden lukket bassiner der håndterer fælles- og spildevand. Alle bassiner er blevet gennemgået ifm. årets indberetning "]
["Forsinkelsesbassiner, lukkede (4.000-10.000 m3) - SRO","m³",10,0,13847,13847,"Ny data",0,"Fejl i tidligere indberetninger. Bassiner har været indberettet under åbne bassiner, men det er i virkeligheden lukket bassiner der håndterer fælles- og spildevand. Alle bassiner er blevet gennemgået ifm. årets indberetning "]
["Forsinkelsesbassiner, lukkede (større end 10.000 m3) - Konstruktioner","m³",75,0,0,0,0,0]
["Forsinkelsesbassiner, lukkede (større end 10.000 m3) - Mek/EL","m³",20,0,0,0,0,0]
["Forsinkelsesbassiner, lukkede (større end 10.000 m3) - SRO","m³",10,0,0,0,0,0]
["Forsinkelsesbassiner - City",null,null,null,null,null,"",""]
["Forsinkelsesbassiner, lukkede uden automatisk rensning og SRO (mindre end 1.000 m3)","m³",50,180,0,0,-1,0,"Fejl i tidligere indberetninger. Bassiner har været indberettet under åbne bassiner, men det er i virkeligheden lukket bassiner der håndterer fælles- og spildevand. Alle bassiner er blevet gennemgået ifm. årets indberetning "]
["Forsinkelsesbassiner, lukkede med automatisk rensning og SRO (mindre end 1.000 m3) - Konstruktioner","m³",75,0,798,798,"Ny data",0,"Fejl i tidligere indberetninger. Bassiner har været indberettet under åbne bassiner, men det er i virkeligheden lukket bassiner der håndterer fælles- og spildevand. Alle bassiner er blevet gennemgået ifm. årets indberetning "]
["Forsinkelsesbassiner, lukkede med automatisk rensning og SRO (mindre end 1.000 m3) - Mek/EL","m³",20,0,{"$f":"E277","v":798},{"$f":"F277","v":798},"Ny data",0,"Fejl i tidligere indberetninger. Bassiner har været indberettet under åbne bassiner, men det er i virkeligheden lukket bassiner der håndterer fælles- og spildevand. Alle bassiner er blevet gennemgået ifm. årets indberetning "]
["Forsinkelsesbassiner, lukkede med automatisk rensning og SRO (mindre end 1.000 m3) - SRO ","m³",10,0,{"$f":"E278","v":798},{"$f":"F278","v":798},"Ny data",0,"Fejl i tidligere indberetninger. Bassiner har været indberettet under åbne bassiner, men det er i virkeligheden lukket bassiner der håndterer fælles- og spildevand. Alle bassiner er blevet gennemgået ifm. årets indberetning "]
["Forsinkelsesbassiner, lukkede (1.000-4.000 m3) - Konstruktioner","m³",75,3450,2100,2100,-0.39130434782608697,0,"Fejl i tidligere indberetninger. Bassiner har været indberettet under åbne bassiner, men det er i virkeligheden lukket bassiner der håndterer fælles- og spildevand. Alle bassiner er blevet gennemgået ifm. årets indberetning "]
["Forsinkelsesbassiner, lukkede (1.000-4.000 m3) - Mek/EL","m³",20,3450,2100,2100,-0.39130434782608697,0,"Fejl i tidligere indberetninger. Bassiner har været indberettet under åbne bassiner, men det er i virkeligheden lukket bassiner der håndterer fælles- og spildevand. Alle bassiner er blevet gennemgået ifm. årets indberetning "]
["Forsinkelsesbassiner, lukkede (1.000-4.000 m3) - SRO","m³",10,1350,2100,2100,0.55555555555555558,0,"Fejl i tidligere indberetninger. Bassiner har været indberettet under åbne bassiner, men det er i virkeligheden lukket bassiner der håndterer fælles- og spildevand. Alle bassiner er blevet gennemgået ifm. årets indberetning "]
["Forsinkelsesbassiner, lukkede (4.000-10.000 m3) - Konstruktioner","m³",75,0,0,0,0,0]
["Forsinkelsesbassiner, lukkede (4.000-10.000 m3) - Mek/EL","m³",20,0,0,0,0,0]
["Forsinkelsesbassiner, lukkede (4.000-10.000 m3) - SRO","m³",10,0,0,0,0,0]
["Forsinkelsesbassiner, lukkede (større end 10.000 m3) - Konstruktioner","m³",75,0,0,0,0,0]
["Forsinkelsesbassiner, lukkede (større end 10.000 m3) - Mek/EL","m³",20,0,0,0,0,0]
["Forsinkelsesbassiner, lukkede (større end 10.000 m3) - SRO","m³",10,0,0,0,0,0]
["Forsinkelsesbassiner - Indre city",null,null,null,null,null,"",""]
["Forsinkelsesbassiner, lukkede uden automatisk rensning og SRO (mindre end 1.000 m3)","m³",50,0,0,0,0,0]
["Forsinkelsesbassiner, lukkede med automatisk rensning og SRO (mindre end 1.000 m3) - Konstruktioner","m³",75,0,0,0,0,0]
["Forsinkelsesbassiner, lukkede med automatisk rensning og SRO (mindre end 1.000 m3) - Mek/EL","m³",20,0,0,0,0,0]
["Forsinkelsesbassiner, lukkede med automatisk rensning og SRO (mindre end 1.000 m3) - SRO ","m³",10,0,0,0,0,0]
["Forsinkelsesbassiner, lukkede (1.000-4.000 m3) - Konstruktioner","m³",75,0,0,0,0,0]
["Forsinkelsesbassiner, lukkede (1.000-4.000 m3) - Mek/EL","m³",20,0,0,0,0,0]
["Forsinkelsesbassiner, lukkede (1.000-4.000 m3) - SRO","m³",10,0,0,0,0,0]
["Forsinkelsesbassiner, lukkede (4.000-10.000 m3) - Konstruktioner","m³",75,0,0,0,0,0]
["Forsinkelsesbassiner, lukkede (4.000-10.000 m3) - Mek/EL","m³",20,0,0,0,0,0]
["Forsinkelsesbassiner, lukkede (4.000-10.000 m3) - SRO","m³",10,0,0,0,0,0]
["Forsinkelsesbassiner, lukkede (større end 10.000 m3) - Konstruktioner","m³",75,0,0,0,0,0]
["Forsinkelsesbassiner, lukkede (større end 10.000 m3) - Mek/EL","m³",20,0,0,0,0,0]
["Forsinkelsesbassiner, lukkede (større end 10.000 m3) - SRO","m³",10,0,0,0,0,0]
["Sparebassin/Laguner/Jordbassiner - Land",null,null,null,null,null,"",""]
["Jordbassin Klasse A og B","m³",50,3725,0,0,-1,0,"Fejl i tidligere indberetninger. Det er lukkede bassiner der håndterer fællesvand og spildevand"]
["Indløb-/udløbsarrangement","stk.",75,0,0,0,0,0]
["Andre bygninger (tekniske installationer, målere mv.)","m2",75,10,0,0,-1,0,"Fejl i tidligere indberetninger. Det er lukkede bassiner der håndterer fællesvand og spildevand"]
["Sparebassin/Laguner/Jordbassiner - By",null,null,null,null,null,"",""]
["Jordbassin Klasse A og B","m³",50,28945,2389,2389,-0.91746415615823118,0,"Fejl i tidligere indberetninger. Det er lukkede bassiner der håndterer fællesvand og spildevand"]
["Indløb-/udløbsarrangement","stk.",75,28,4,4,-0.8571428571428571,0,"Fejl i tidligere indberetninger. Det er lukkede bassiner der håndterer fællesvand og spildevand"]
["Andre bygninger (tekniske installationer, målere mv.)","m2",75,0,0,0,0,0]
["Sparebassin/Laguner/Jordbassiner - City",null,null,null,null,null,"",""]
["Jordbassin Klasse A og B","m³",50,3300,0,0,-1,0,"Fejl i tidligere indberetninger. Det er lukkede bassiner der håndterer fællesvand og spildevand"]
["Indløb-/udløbsarrangement","stk.",75,30,0,0,-1,0,"Fejl i tidligere indberetninger. Det er lukkede bassiner der håndterer fællesvand og spildevand"]
["Andre bygninger (tekniske installationer, målere mv.)","m2",75,0,0,0,0,0]
["Sparebassin/Laguner/Jordbassiner - Indre city",null,null,null,null,null,"",""]
["Jordbassin Klasse A og B","m³",50,0,0,0,0,0]
["Indløb-/udløbsarrangement","stk.",75,0,0,0,0,0]
["Andre bygninger (tekniske installationer, målere mv.)","m2",75,0,0,0,0,0]

{"sheet":"Fællesfunktionsanlæg","index":2,"n_rows":13,"n_cols":9,"rows_kept":13,"cut":false,"hidden":false,"merged":[[0,0,1,0],[0,1,1,1],[0,2,1,2],[0,3,1,3],[0,8,1,8],[0,4,1,4],[0,5,1,5],[0,6,1,6],[0,7,1,7]]}
["Fællesfunktionsanlæg","Enhed","Standard-levetid","Samlet mængde per 31/12-2022","Samlet mængde per 31/12-2023","Samlet mængde per 31/12-2024","Afvigelse 2022-2023","Afvigelse 2023-2024","Bemærkninger"]
[]
["Andre",null,null,null,null,null,{"$f":"IF(D3=\"\",IF(E3>0,\"Ny data\",IF(E3=\"\",\"\",0)),IF(D3=0,IF(E3=0,0,\"Ny data\"),(E3-D3)/D3))","v":""},{"$f":"IF(E3=\"\",IF(F3>0,\"Ny data\",IF(F3=\"\",\"\",0)),IF(E3=0,IF(F3=0,0,\"Ny data\"),(F3-E3)/E3))","v":""}]
["Administrationbygninger","m2",75,38,327,327,7.6052631578947372,0,"Ny optælling af m2"]
["Arbejdsplads og kontor","stk.",5,23,30,30,0.30434782608695654,0,"Ny metode til opgørelse af arbejdspladser, som er i overensstemmelse med vejledning"]
["Køretøjer, personbil","stk.",5,0,0,0,0,0]
["Køretøjer, små lastvogne (< 3.500 kg.)","stk.",5,3,3,3,0,0]
["Køretøjer, store lastvogne (> 3.500 kg.)","stk.",5,3,3,3,0,0]
["Køretøjer, entreprenørmaskiner","stk.",5,5,8,11,0.6,0.375,"Ved en grundig gennemgang er motorkøretøjer blev der fundet maskiner, som ved en fejl ikke tidligere er blevet indberettet. Derudover er indkøbt nye maskiner i 2024"]
["Slamsugere","stk.",5,0,0,0,0,0]
["Værksteder, garager","m2",75,327,327,327,0,0]
["Solcelleanlæg eksl. Inverter","kWp",25,0,0,0,0,0]
["Inverter til solcelleanlæg","kWp",10,0,0,0,0,0]